{"text_format":"1","workbook":"xlsx","n_sheets":3,"sheets":["يناير","Interface","Login"],"not_rendered":{"charts":0,"images":2,"macros":1,"external_links":0,"defined_names":36,"comments":0,"pivot_tables":0},"unopened":[],"bounds":{"document_bytes":16777216,"sheet_cells":100000,"rows_first":2000,"rows_last":500,"rows_between":2000,"halvings":0,"cell_chars":16384,"cell_head_chars":4096},"cells_cut":0,"cells_raw":0,"read":"whole","date_system":"1900"}

{"sheet":"يناير","index":0,"n_rows":266,"n_cols":39,"rows_kept":266,"cut":false,"hidden":false,"merged":[[2,1,2,33],[5,2,5,32],[3,3,3,4],[3,6,3,8],[3,10,3,11],[3,13,3,14],[3,16,3,17],[3,19,3,20]]}
[]
[]
[null,"جدول الحضور والغياب لكتائب العاصفة"]
[null,"مفاتيح الرموز","غ","غيـــــــــاب",null,"ح","حضــــــــور",null,null,"م","مــــــــرض",null,"هـ","مهمــــــــة",null,"ر","رخصــــــــة",null,"و","واجــــــــب"]
[null,null,null,null,null,null,null,null,null,null,null,null,null,null,null,null,null,null,null,null,null,null,null,null,null,null,null,null,null,null,null,null,null,"السنة:"]
[null,"يناير","كشف الحضور والغياب للكتيبة الأولى",null,null,null,null,null,null,null,null,null,null,null,null,null,null,null,null,null,null,null,null,null,null,null,null,null,null,null,null,null,null,2018]
[null,null,{"$f":"TEXT(WEEKDAY(DATE(CalendarYear,1,1),1),\"aaa\")","v":"Mon"},{"$f":"TEXT(WEEKDAY(DATE(CalendarYear,1,2),1),\"aaa\")","v":"Tue"},{"$f":"TEXT(WEEKDAY(DATE(CalendarYear,1,3),1),\"aaa\")","v":"Wed"},{"$f":"TEXT(WEEKDAY(DATE(CalendarYear,1,4),1),\"aaa\")","v":"Thu"},{"$f":"TEXT(WEEKDAY(DATE(CalendarYear,1,5),1),\"aaa\")","v":"Fri"},{"$f":"TEXT(WEEKDAY(DATE(CalendarYear,1,6),1),\"aaa\")","v":"Sat"},{"$f":"TEXT(WEEKDAY(DATE(CalendarYear,1,7),1),\"aaa\")","v":"Sun"},{"$f":"TEXT(WEEKDAY(DATE(CalendarYear,1,8),1),\"aaa\")","v":"Mon"},{"$f":"TEXT(WEEKDAY(DATE(CalendarYear,1,9),1),\"aaa\")","v":"Tue"},{"$f":"TEXT(WEEKDAY(DATE(CalendarYear,1,10),1),\"aaa\")","v":"Wed"},{"$f":"TEXT(WEEKDAY(DATE(CalendarYear,1,11),1),\"aaa\")","v":"Thu"},{"$f":"TEXT(WEEKDAY(DATE(CalendarYear,1,12),1),\"aaa\")","v":"Fri"},{"$f":"TEXT(WEEKDAY(DATE(CalendarYear,1,13),1),\"aaa\")","v":"Sat"},{"$f":"TEXT(WEEKDAY(DATE(CalendarYear,1,14),1),\"aaa\")","v":"Sun"},{"$f":"TEXT(WEEKDAY(DATE(CalendarYear,1,15),1),\"aaa\")","v":"Mon"},{"$f":"TEXT(WEEKDAY(DATE(CalendarYear,1,16),1),\"aaa\")","v":"Tue"},{"$f":"TEXT(WEEKDAY(DATE(CalendarYear,1,17),1),\"aaa\")","v":"Wed"},{"$f":"TEXT(WEEKDAY(DATE(CalendarYear,1,18),1),\"aaa\")","v":"Thu"},{"$f":"TEXT(WEEKDAY(DATE(CalendarYear,1,19),1),\"aaa\")","v":"Fri"},{"$f":"TEXT(WEEKDAY(DATE(CalendarYear,1,20),1),\"aaa\")","v":"Sat"},{"$f":"TEXT(WEEKDAY(DATE(CalendarYear,1,21),1),\"aaa\")","v":"Sun"},{"$f":"TEXT(WEEKDAY(DATE(CalendarYear,1,22),1),\"aaa\")","v":"Mon"},{"$f":"TEXT(WEEKDAY(DATE(CalendarYear,1,23),1),\"aaa\")","v":"Tue"},{"$f":"TEXT(WEEKDAY(DATE(CalendarYear,1,24),1),\"aaa\")","v":"Wed"},{"$f":"TEXT(WEEKDAY(DATE(CalendarYear,1,25),1),\"aaa\")","v":"Thu"},{"$f":"TEXT(WEEKDAY(DATE(CalendarYear,1,26),1),\"aaa\")","v":"Fri"},{"$f":"TEXT(WEEKDAY(DATE(CalendarYear,1,27),1),\"aaa\")","v":"Sat"},{"$f":"TEXT(WEEKDAY(DATE(CalendarYear,1,28),1),\"aaa\")","v":"Sun"},{"$f":"TEXT(WEEKDAY(DATE(CalendarYear,1,29),1),\"aaa\")","v":"Mon"},{"$f":"TEXT(WEEKDAY(DATE(CalendarYear,1,30),1),\"aaa\")","v":"Tue"},{"$f":"TEXT(WEEKDAY(DATE(CalendarYear,1,31),1),\"aaa\")","v":"Wed"}]
[null,"الاســــــــــــــــــــم","1","2","3","4","5","6","7","8","9","10","11","12","13","14","15","16","17","18","19","20","21","22","23","24","25","26","27","28","29","30","31","إجمالي الغياب","إجمالي الحضور","إجمالي المرض","إجمالي المهمات","إجمالي الرخصة","إجمالي الواجب"]
[1,"الفرد رقم 1",null,null,null,null,null,null,null,null,null,null,null,null,null,null,null,null,null,null,null,null,null,null,null,null,null,null,null,null,null,null,null,{"$f":"COUNTIF(C9:AG9,\"غ\") + COUNTIF(C9:AG9,\"0.5\")","v":0},{"$f":"COUNTIF(D9:AG9,\"ح\") + COUNTIF(D9:AH9,\"0.5\") + يناير[[#This Row],[إجمالي المهمات]] + يناير[[#This Row],[إجمالي الواجب]]","v":0},{"$f":"COUNTIF(E9:AG9,\"م\")","v":0},{"$f":"COUNTIF(F9:AG9,\"هـ\")","v":0},{"$f":"COUNTIF(G9:AG9,\"ر\")","v":0},{"$f":"COUNTIF(H9:AG9,\"و\")","v":0}]
[2,"الفرد رقم 2",null,null,null,null,null,null,null,null,null,null,null,null,null,null,null,null,null,null,null,null,null,null,null,null,null,null,null,null,null,null,null,0,{"$f":"COUNTIF(D10:AG10,\"ح\") + COUNTIF(D10:AH10,\"0.5\") + يناير[[#This Row],[إجمالي المهمات]] + يناير[[#This Row],[إجمالي الواجب]]","v":0},0,0,0,0]
[3,"الفرد رقم 3",null,null,null,null,null,null,null,null,null,null,null,null,null,null,null,null,null,null,null,null,null,null,null,null,null,null,null,null,null,null,null,0,{"$f":"COUNTIF(D11:AG11,\"ح\") + COUNTIF(D11:AH11,\"0.5\") + يناير[[#This Row],[إجمالي المهمات]] + يناير[[#This Row],[إجمالي الواجب]]","v":0},0,0,0,0]
[4,"الفرد رقم 4",null,null,null,null,null,null,null,null,null,null,null,null,null,null,null,null,null,null,null,null,null,null,null,null,null,null,null,null,null,null,null,0,{"$f":"COUNTIF(D12:AG12,\"ح\") + COUNTIF(D12:AH12,\"0.5\") + يناير[[#This Row],[إجمالي المهمات]] + يناير[[#This Row],[إجمالي الواجب]]","v":0},0,0,0,0]
[5,"الفرد رقم 5",null,null,null,null,null,null,null,null,null,null,null,null,null,null,null,null,null,null,null,null,null,null,null,null,null,null,null,null,null,null,null,0,{"$f":"COUNTIF(D13:AG13,\"ح\") + COUNTIF(D13:AH13,\"0.5\") + يناير[[#This Row],[إجمالي المهمات]] + يناير[[#This Row],[إجمالي الواجب]]","v":0},0,0,0,0]
[6,"الفرد رقم 6",null,null,null,null,null,null,null,null,null,null,null,null,null,null,null,null,null,null,null,null,null,null,null,null,null,null,null,null,null,null,null,0,{"$f":"COUNTIF(D14:AG14,\"ح\") + COUNTIF(D14:AH14,\"0.5\") + يناير[[#This Row],[إجمالي المهمات]] + يناير[[#This Row],[إجمالي الواجب]]","v":0},0,0,0,0]
[7,"الفرد رقم 7",null,null,null,null,null,null,null,null,null,null,null,null,null,null,null,null,null,null,null,null,null,null,null,null,null,null,null,null,null,null,null,0,{"$f":"COUNTIF(D15:AG15,\"ح\") + COUNTIF(D15:AH15,\"0.5\") + يناير[[#This Row],[إجمالي المهمات]] + يناير[[#This Row],[إجمالي الواجب]]","v":0},0,0,0,0]
[8,"الفرد رقم 8",null,null,null,null,null,null,null,null,null,null,null,null,null,null,null,null,null,null,null,null,null,null,null,null,null,null,null,null,null,null,null,0,{"$f":"COUNTIF(D16:AG16,\"ح\") + COUNTIF(D16:AH16,\"0.5\") + يناير[[#This Row],[إجمالي المهمات]] + يناير[[#This Row],[إجمالي الواجب]]","v":0},0,0,0,0]
[9,"الفرد رقم 9",null,null,null,null,null,null,null,null,null,null,null,null,null,null,null,null,null,null,null,null,null,null,null,null,null,null,null,null,null,null,null,0,{"$f":"COUNTIF(D17:AG17,\"ح\") + COUNTIF(D17:AH17,\"0.5\") + يناير[[#This Row],[إجمالي المهمات]] + يناير[[#This Row],[إجمالي الواجب]]","v":0},0,0,0,0]
[10,"الفرد رقم 10",null,null,null,null,null,null,null,null,null,null,null,null,null,null,null,null,null,null,null,null,null,null,null,null,null,null,null,null,null,null,null,0,{"$f":"COUNTIF(D18:AG18,\"ح\") + COUNTIF(D18:AH18,\"0.5\") + يناير[[#This Row],[إجمالي المهمات]] + يناير[[#This Row],[إجمالي الواجب]]","v":0},0,0,0,0]
[11,"الفرد رقم 11",null,null,null,null,null,null,null,null,null,null,null,null,null,null,null,null,null,null,null,null,null,null,null,null,null,null,null,null,null,null,null,0,{"$f":"COUNTIF(D19:AG19,\"ح\") + COUNTIF(D19:AH19,\"0.5\") + يناير[[#This Row],[إجمالي المهمات]] + يناير[[#This Row],[إجمالي الواجب]]","v":0},0,0,0,0]
[12,"الفرد رقم 12",null,null,null,null,null,null,null,null,null,null,null,null,null,null,null,null,null,null,null,null,null,null,null,null,null,null,null,null,null,null,null,0,{"$f":"COUNTIF(D20:AG20,\"ح\") + COUNTIF(D20:AH20,\"0.5\") + يناير[[#This Row],[إجمالي المهمات]] + يناير[[#This Row],[إجمالي الواجب]]","v":0},0,0,0,0]
[13,"الفرد رقم 13",null,null,null,null,null,null,null,null,null,null,null,null,null,null,null,null,null,null,null,null,null,null,null,null,null,null,null,null,null,null,null,0,{"$f":"COUNTIF(D21:AG21,\"ح\") + COUNTIF(D21:AH21,\"0.5\") + يناير[[#This Row],[إجمالي المهمات]] + يناير[[#This Row],[إجمالي الواجب]]","v":0},0,0,0,0]
[14,"الفرد رقم 14",null,null,null,null,null,null,null,null,null,null,null,null,null,null,null,null,null,null,null,null,null,null,null,null,null,null,null,null,null,null,null,0,{"$f":"COUNTIF(D22:AG22,\"ح\") + COUNTIF(D22:AH22,\"0.5\") + يناير[[#This Row],[إجمالي المهمات]] + يناير[[#This Row],[إجمالي الواجب]]","v":0},0,0,0,0]
[15,"الفرد رقم 15",null,null,null,null,null,null,null,null,null,null,null,null,null,null,null,null,null,null,null,null,null,null,null,null,null,null,null,null,null,null,null,0,{"$f":"COUNTIF(D23:AG23,\"ح\") + COUNTIF(D23:AH23,\"0.5\") + يناير[[#This Row],[إجمالي المهمات]] + يناير[[#This Row],[إجمالي الواجب]]","v":0},0,0,0,0]
[16,"الفرد رقم 16",null,null,null,null,null,null,null,null,null,null,null,null,null,null,null,null,null,null,null,null,null,null,null,null,null,null,null,null,null,null,null,0,{"$f":"COUNTIF(D24:AG24,\"ح\") + COUNTIF(D24:AH24,\"0.5\") + يناير[[#This Row],[إجمالي المهمات]] + يناير[[#This Row],[إجمالي الواجب]]","v":0},0,0,0,0]
[17,"الفرد رقم 17",null,null,null,null,null,null,null,null,null,null,null,null,null,null,null,null,null,null,null,null,null,null,null,null,null,null,null,null,null,null,null,0,{"$f":"COUNTIF(D25:AG25,\"ح\") + COUNTIF(D25:AH25,\"0.5\") + يناير[[#This Row],[إجمالي المهمات]] + يناير[[#This Row],[إجمالي الواجب]]","v":0},0,0,0,0]
[18,"الفرد رقم 18",null,null,null,null,null,null,null,null,null,null,null,null,null,null,null,null,null,null,null,null,null,null,null,null,null,null,null,null,null,null,null,0,{"$f":"COUNTIF(D26:AG26,\"ح\") + COUNTIF(D26:AH26,\"0.5\") + يناير[[#This Row],[إجمالي المهمات]] + يناير[[#This Row],[إجمالي الواجب]]","v":0},0,0,0,0]
[19,"الفرد رقم 19",null,null,null,null,null,null,null,null,null,null,null,null,null,null,null,null,null,null,null,null,null,null,null,null,null,null,null,null,null,null,null,0,{"$f":"COUNTIF(D27:AG27,\"ح\") + COUNTIF(D27:AH27,\"0.5\") + يناير[[#This Row],[إجمالي المهمات]] + يناير[[#This Row],[إجمالي الواجب]]","v":0},0,0,0,0]
[20,"الفرد رقم 20",null,null,null,null,null,null,null,null,null,null,null,null,null,null,null,null,null,null,null,null,null,null,null,null,null,null,null,null,null,null,null,0,{"$f":"COUNTIF(D28:AG28,\"ح\") + COUNTIF(D28:AH28,\"0.5\") + يناير[[#This Row],[إجمالي المهمات]] + يناير[[#This Row],[إجمالي الواجب]]","v":0},0,0,0,0]
[21,"الفرد رقم 21",null,null,null,null,null,null,null,null,null,null,null,null,null,null,null,null,null,null,null,null,null,null,null,null,null,null,null,null,null,null,null,0,{"$f":"COUNTIF(D29:AG29,\"ح\") + COUNTIF(D29:AH29,\"0.5\") + يناير[[#This Row],[إجمالي المهمات]] + يناير[[#This Row],[إجمالي الواجب]]","v":0},0,0,0,0]
[22,"الفرد رقم 22",null,null,null,null,null,null,null,null,null,null,null,null,null,null,null,null,null,null,null,null,null,null,null,null,null,null,null,null,null,null,null,0,{"$f":"COUNTIF(D30:AG30,\"ح\") + COUNTIF(D30:AH30,\"0.5\") + يناير[[#This Row],[إجمالي المهمات]] + يناير[[#This Row],[إجمالي الواجب]]","v":0},0,0,0,0]
[23,"الفرد رقم 23",null,null,null,null,null,null,null,null,null,null,null,null,null,null,null,null,null,null,null,null,null,null,null,null,null,null,null,null,null,null,null,0,{"$f":"COUNTIF(D31:AG31,\"ح\") + COUNTIF(D31:AH31,\"0.5\") + يناير[[#This Row],[إجمالي المهمات]] + يناير[[#This Row],[إجمالي الواجب]]","v":0},0,0,0,0]
[24,"الفرد رقم 24",null,null,null,null,null,null,null,null,null,null,null,null,null,null,null,null,null,null,null,null,null,null,null,null,null,null,null,null,null,null,null,0,{"$f":"COUNTIF(D32:AG32,\"ح\") + COUNTIF(D32:AH32,\"0.5\") + يناير[[#This Row],[إجمالي المهمات]] + يناير[[#This Row],[إجمالي الواجب]]","v":0},0,0,0,0]
[25,"الفرد رقم 25",null,null,null,null,null,null,null,null,null,null,null,null,null,null,null,null,null,null,null,null,null,null,null,null,null,null,null,null,null,null,null,0,{"$f":"COUNTIF(D33:AG33,\"ح\") + COUNTIF(D33:AH33,\"0.5\") + يناير[[#This Row],[إجمالي المهمات]] + يناير[[#This Row],[إجمالي الواجب]]","v":0},0,0,0,0]
[26,"الفرد رقم 26",null,null,null,null,null,null,null,null,null,null,null,null,null,null,null,null,null,null,null,null,null,null,null,null,null,null,null,null,null,null,null,0,{"$f":"COUNTIF(D34:AG34,\"ح\") + COUNTIF(D34:AH34,\"0.5\") + يناير[[#This Row],[إجمالي المهمات]] + يناير[[#This Row],[إجمالي الواجب]]","v":0},0,0,0,0]
[27,"الفرد رقم 27",null,null,null,null,null,null,null,null,null,null,null,null,null,null,null,null,null,null,null,null,null,null,null,null,null,null,null,null,null,null,null,0,{"$f":"COUNTIF(D35:AG35,\"ح\") + COUNTIF(D35:AH35,\"0.5\") + يناير[[#This Row],[إجمالي المهمات]] + يناير[[#This Row],[إجمالي الواجب]]","v":0},0,0,0,0]
[28,"الفرد رقم 28",null,null,null,null,null,null,null,null,null,null,null,null,null,null,null,null,null,null,null,null,null,null,null,null,null,null,null,null,null,null,null,0,{"$f":"COUNTIF(D36:AG36,\"ح\") + COUNTIF(D36:AH36,\"0.5\") + يناير[[#This Row],[إجمالي المهمات]] + يناير[[#This Row],[إجمالي الواجب]]","v":0},0,0,0,0]
[29,"الفرد رقم 29",null,null,null,null,null,null,null,null,null,null,null,null,null,null,null,null,null,null,null,null,null,null,null,null,null,null,null,null,null,null,null,0,{"$f":"COUNTIF(D37:AG37,\"ح\") + COUNTIF(D37:AH37,\"0.5\") + يناير[[#This Row],[إجمالي المهمات]] + يناير[[#This Row],[إجمالي الواجب]]","v":0},0,0,0,0]
[30,"الفرد رقم 30",null,null,null,null,null,null,null,null,null,null,null,null,null,null,null,null,null,null,null,null,null,null,null,null,null,null,null,null,null,null,null,0,{"$f":"COUNTIF(D38:AG38,\"ح\") + COUNTIF(D38:AH38,\"0.5\") + يناير[[#This Row],[إجمالي المهمات]] + يناير[[#This Row],[إجمالي الواجب]]","v":0},0,0,0,0]
[31,"الفرد رقم 31",null,null,null,null,null,null,null,null,null,null,null,null,null,null,null,null,null,null,null,null,null,null,null,null,null,null,null,null,null,null,null,0,{"$f":"COUNTIF(D39:AG39,\"ح\") + COUNTIF(D39:AH39,\"0.5\") + يناير[[#This Row],[إجمالي المهمات]] + يناير[[#This Row],[إجمالي الواجب]]","v":0},0,0,0,0]
[32,"الفرد رقم 32",null,null,null,null,null,null,null,null,null,null,null,null,null,null,null,null,null,null,null,null,null,null,null,null,null,null,null,null,null,null,null,0,{"$f":"COUNTIF(D40:AG40,\"ح\") + COUNTIF(D40:AH40,\"0.5\") + يناير[[#This Row],[إجمالي المهمات]] + يناير[[#This Row],[إجمالي الواجب]]","v":0},0,0,0,0]
[33,"الفرد رقم 33",null,null,null,null,null,null,null,null,null,null,null,null,null,null,null,null,null,null,null,null,null,null,null,null,null,null,null,null,null,null,null,0,{"$f":"COUNTIF(D41:AG41,\"ح\") + COUNTIF(D41:AH41,\"0.5\") + يناير[[#This Row],[إجمالي المهمات]] + يناير[[#This Row],[إجمالي الواجب]]","v":0},0,0,0,0]
[34,"الفرد رقم 34",null,null,null,null,null,null,null,null,null,null,null,null,null,null,null,null,null,null,null,null,null,null,null,null,null,null,null,null,null,null,null,0,{"$f":"COUNTIF(D42:AG42,\"ح\") + COUNTIF(D42:AH42,\"0.5\") + يناير[[#This Row],[إجمالي المهمات]] + يناير[[#This Row],[إجمالي الواجب]]","v":0},0,0,0,0]
[35,"الفرد رقم 35",null,null,null,null,null,null,null,null,null,null,null,null,null,null,null,null,null,null,null,null,null,null,null,null,null,null,null,null,null,null,null,0,{"$f":"COUNTIF(D43:AG43,\"ح\") + COUNTIF(D43:AH43,\"0.5\") + يناير[[#This Row],[إجمالي المهمات]] + يناير[[#This Row],[إجمالي الواجب]]","v":0},0,0,0,0]
[36,"الفرد رقم 36",null,null,null,null,null,null,null,null,null,null,null,null,null,null,null,null,null,null,null,null,null,null,null,null,null,null,null,null,null,null,null,0,{"$f":"COUNTIF(D44:AG44,\"ح\") + COUNTIF(D44:AH44,\"0.5\") + يناير[[#This Row],[إجمالي المهمات]] + يناير[[#This Row],[إجمالي الواجب]]","v":0},0,0,0,0]
[37,"الفرد رقم 37",null,null,null,null,null,null,null,null,null,null,null,null,null,null,null,null,null,null,null,null,null,null,null,null,null,null,null,null,null,null,null,0,{"$f":"COUNTIF(D45:AG45,\"ح\") + COUNTIF(D45:AH45,\"0.5\") + يناير[[#This Row],[إجمالي المهمات]] + يناير[[#This Row],[إجمالي الواجب]]","v":0},0,0,0,0]
[38,"الفرد رقم 38",null,null,null,null,null,null,null,null,null,null,null,null,null,null,null,null,null,null,null,null,null,null,null,null,null,null,null,null,null,null,null,0,{"$f":"COUNTIF(D46:AG46,\"ح\") + COUNTIF(D46:AH46,\"0.5\") + يناير[[#This Row],[إجمالي المهمات]] + يناير[[#This Row],[إجمالي الواجب]]","v":0},0,0,0,0]
[39,"الفرد رقم 39",null,null,null,null,null,null,null,null,null,null,null,null,null,null,null,null,null,null,null,null,null,null,null,null,null,null,null,null,null,null,null,0,{"$f":"COUNTIF(D47:AG47,\"ح\") + COUNTIF(D47:AH47,\"0.5\") + يناير[[#This Row],[إجمالي المهمات]] + يناير[[#This Row],[إجمالي الواجب]]","v":0},0,0,0,0]
[40,"الفرد رقم 40",null,null,null,null,null,null,null,null,null,null,null,null,null,null,null,null,null,null,null,null,null,null,null,null,null,null,null,null,null,null,null,0,{"$f":"COUNTIF(D48:AG48,\"ح\") + COUNTIF(D48:AH48,\"0.5\") + يناير[[#This Row],[إجمالي المهمات]] + يناير[[#This Row],[إجمالي الواجب]]","v":0},0,0,0,0]
[41,"الفرد رقم 41",null,null,null,null,null,null,null,null,null,null,null,null,null,null,null,null,null,null,null,null,null,null,null,null,null,null,null,null,null,null,null,0,{"$f":"COUNTIF(D49:AG49,\"ح\") + COUNTIF(D49:AH49,\"0.5\") + يناير[[#This Row],[إجمالي المهمات]] + يناير[[#This Row],[إجمالي الواجب]]","v":0},0,0,0,0]
[42,"الفرد رقم 42",null,null,null,null,null,null,null,null,null,null,null,null,null,null,null,null,null,null,null,null,null,null,null,null,null,null,null,null,null,null,null,0,{"$f":"COUNTIF(D50:AG50,\"ح\") + COUNTIF(D50:AH50,\"0.5\") + يناير[[#This Row],[إجمالي المهمات]] + يناير[[#This Row],[إجمالي الواجب]]","v":0},0,0,0,0]
[43,"الفرد رقم 43",null,null,null,null,null,null,null,null,null,null,null,null,null,null,null,null,null,null,null,null,null,null,null,null,null,null,null,null,null,null,null,0,{"$f":"COUNTIF(D51:AG51,\"ح\") + COUNTIF(D51:AH51,\"0.5\") + يناير[[#This Row],[إجمالي المهمات]] + يناير[[#This Row],[إجمالي الواجب]]","v":0},0,0,0,0]
[44,"الفرد رقم 44",null,null,null,null,null,null,null,null,null,null,null,null,null,null,null,null,null,null,null,null,null,null,null,null,null,null,null,null,null,null,null,0,{"$f":"COUNTIF(D52:AG52,\"ح\") + COUNTIF(D52:AH52,\"0.5\") + يناير[[#This Row],[إجمالي المهمات]] + يناير[[#This Row],[إجمالي الواجب]]","v":0},0,0,0,0]
[45,"الفرد رقم 45",null,null,null,null,null,null,null,null,null,null,null,null,null,null,null,null,null,null,null,null,null,null,null,null,null,null,null,null,null,null,null,0,{"$f":"COUNTIF(D53:AG53,\"ح\") + COUNTIF(D53:AH53,\"0.5\") + يناير[[#This Row],[إجمالي المهمات]] + يناير[[#This Row],[إجمالي الواجب]]","v":0},0,0,0,0]
[46,"الفرد رقم 46",null,null,null,null,null,null,null,null,null,null,null,null,null,null,null,null,null,null,null,null,null,null,null,null,null,null,null,null,null,null,null,0,{"$f":"COUNTIF(D54:AG54,\"ح\") + COUNTIF(D54:AH54,\"0.5\") + يناير[[#This Row],[إجمالي المهمات]] + يناير[[#This Row],[إجمالي الواجب]]","v":0},0,0,0,0]
[47,"الفرد رقم 47",null,null,null,null,null,null,null,null,null,null,null,null,null,null,null,null,null,null,null,null,null,null,null,null,null,null,null,null,null,null,null,0,{"$f":"COUNTIF(D55:AG55,\"ح\") + COUNTIF(D55:AH55,\"0.5\") + يناير[[#This Row],[إجمالي المهمات]] + يناير[[#This Row],[إجمالي الواجب]]","v":0},0,0,0,0]
[48,"الفرد رقم 48",null,null,null,null,null,null,null,null,null,null,null,null,null,null,null,null,null,null,null,null,null,null,null,null,null,null,null,null,null,null,null,0,{"$f":"COUNTIF(D56:AG56,\"ح\") + COUNTIF(D56:AH56,\"0.5\") + يناير[[#This Row],[إجمالي المهمات]] + يناير[[#This Row],[إجمالي الواجب]]","v":0},0,0,0,0]
[49,"الفرد رقم 49",null,null,null,null,null,null,null,null,null,null,null,null,null,null,null,null,null,null,null,null,null,null,null,null,null,null,null,null,null,null,null,0,{"$f":"COUNTIF(D57:AG57,\"ح\") + COUNTIF(D57:AH57,\"0.5\") + يناير[[#This Row],[إجمالي المهمات]] + يناير[[#This Row],[إجمالي الواجب]]","v":0},0,0,0,0]
[50,"الفرد رقم 50",null,null,null,null,null,null,null,null,null,null,null,null,null,null,null,null,null,null,null,null,null,null,null,null,null,null,null,null,null,null,null,0,{"$f":"COUNTIF(D58:AG58,\"ح\") + COUNTIF(D58:AH58,\"0.5\") + يناير[[#This Row],[إجمالي المهمات]] + يناير[[#This Row],[إجمالي الواجب]]","v":0},0,0,0,0]
[51,"الفرد رقم 51",null,null,null,null,null,null,null,null,null,null,null,null,null,null,null,null,null,null,null,null,null,null,null,null,null,null,null,null,null,null,null,0,{"$f":"COUNTIF(D59:AG59,\"ح\") + COUNTIF(D59:AH59,\"0.5\") + يناير[[#This Row],[إجمالي المهمات]] + يناير[[#This Row],[إجمالي الواجب]]","v":0},0,0,0,0]
[52,"الفرد رقم 52",null,null,null,null,null,null,null,null,null,null,null,null,null,null,null,null,null,null,null,null,null,null,null,null,null,null,null,null,null,null,null,0,{"$f":"COUNTIF(D60:AG60,\"ح\") + COUNTIF(D60:AH60,\"0.5\") + يناير[[#This Row],[إجمالي المهمات]] + يناير[[#This Row],[إجمالي الواجب]]","v":0},0,0,0,0]
[53,"الفرد رقم 53",null,null,null,null,null,null,null,null,null,null,null,null,null,null,null,null,null,null,null,null,null,null,null,null,null,null,null,null,null,null,null,0,{"$f":"COUNTIF(D61:AG61,\"ح\") + COUNTIF(D61:AH61,\"0.5\") + يناير[[#This Row],[إجمالي المهمات]] + يناير[[#This Row],[إجمالي الواجب]]","v":0},0,0,0,0]
[54,"الفرد رقم 54",null,null,null,null,null,null,null,null,null,null,null,null,null,null,null,null,null,null,null,null,null,null,null,null,null,null,null,null,null,null,null,0,{"$f":"COUNTIF(D62:AG62,\"ح\") + COUNTIF(D62:AH62,\"0.5\") + يناير[[#This Row],[إجمالي المهمات]] + يناير[[#This Row],[إجمالي الواجب]]","v":0},0,0,0,0]
[55,"الفرد رقم 55",null,null,null,null,null,null,null,null,null,null,null,null,null,null,null,null,null,null,null,null,null,null,null,null,null,null,null,null,null,null,null,0,{"$f":"COUNTIF(D63:AG63,\"ح\") + COUNTIF(D63:AH63,\"0.5\") + يناير[[#This Row],[إجمالي المهمات]] + يناير[[#This Row],[إجمالي الواجب]]","v":0},0,0,0,0]
[56,"الفرد رقم 56",null,null,null,null,null,null,null,null,null,null,null,null,null,null,null,null,null,null,null,null,null,null,null,null,null,null,null,null,null,null,null,0,{"$f":"COUNTIF(D64:AG64,\"ح\") + COUNTIF(D64:AH64,\"0.5\") + يناير[[#This Row],[إجمالي المهمات]] + يناير[[#This Row],[إجمالي الواجب]]","v":0},0,0,0,0]
[57,"الفرد رقم 57",null,null,null,null,null,null,null,null,null,null,null,null,null,null,null,null,null,null,null,null,null,null,null,null,null,null,null,null,null,null,null,0,{"$f":"COUNTIF(D65:AG65,\"ح\") + COUNTIF(D65:AH65,\"0.5\") + يناير[[#This Row],[إجمالي المهمات]] + يناير[[#This Row],[إجمالي الواجب]]","v":0},0,0,0,0]
[58,"الفرد رقم 58",null,null,null,null,null,null,null,null,null,null,null,null,null,null,null,null,null,null,null,null,null,null,null,null,null,null,null,null,null,null,null,0,{"$f":"COUNTIF(D66:AG66,\"ح\") + COUNTIF(D66:AH66,\"0.5\") + يناير[[#This Row],[إجمالي المهمات]] + يناير[[#This Row],[إجمالي الواجب]]","v":0},0,0,0,0]
[59,"الفرد رقم 59",null,null,null,null,null,null,null,null,null,null,null,null,null,null,null,null,null,null,null,null,null,null,null,null,null,null,null,null,null,null,null,0,{"$f":"COUNTIF(D67:AG67,\"ح\") + COUNTIF(D67:AH67,\"0.5\") + يناير[[#This Row],[إجمالي المهمات]] + يناير[[#This Row],[إجمالي الواجب]]","v":0},0,0,0,0]
[60,"الفرد رقم 60",null,null,null,null,null,null,null,null,null,null,null,null,null,null,null,null,null,null,null,null,null,null,null,null,null,null,null,null,null,null,null,0,{"$f":"COUNTIF(D68:AG68,\"ح\") + COUNTIF(D68:AH68,\"0.5\") + يناير[[#This Row],[إجمالي المهمات]] + يناير[[#This Row],[إجمالي الواجب]]","v":0},0,0,0,0]
[61,"الفرد رقم 61",null,null,null,null,null,null,null,null,null,null,null,null,null,null,null,null,null,null,null,null,null,null,null,null,null,null,null,null,null,null,null,0,{"$f":"COUNTIF(D69:AG69,\"ح\") + COUNTIF(D69:AH69,\"0.5\") + يناير[[#This Row],[إجمالي المهمات]] + يناير[[#This Row],[إجمالي الواجب]]","v":0},0,0,0,0]
[62,"الفرد رقم 62",null,null,null,null,null,null,null,null,null,null,null,null,null,null,null,null,null,null,null,null,null,null,null,null,null,null,null,null,null,null,null,0,{"$f":"COUNTIF(D70:AG70,\"ح\") + COUNTIF(D70:AH70,\"0.5\") + يناير[[#This Row],[إجمالي المهمات]] + يناير[[#This Row],[إجمالي الواجب]]","v":0},0,0,0,0]
[63,"الفرد رقم 63",null,null,null,null,null,null,null,null,null,null,null,null,null,null,null,null,null,null,null,null,null,null,null,null,null,null,null,null,null,null,null,0,{"$f":"COUNTIF(D71:AG71,\"ح\") + COUNTIF(D71:AH71,\"0.5\") + يناير[[#This Row],[إجمالي المهمات]] + يناير[[#This Row],[إجمالي الواجب]]","v":0},0,0,0,0]
[64,"الفرد رقم 64",null,null,null,null,null,null,null,null,null,null,null,null,null,null,null,null,null,null,null,null,null,null,null,null,null,null,null,null,null,null,null,0,{"$f":"COUNTIF(D72:AG72,\"ح\") + COUNTIF(D72:AH72,\"0.5\") + يناير[[#This Row],[إجمالي المهمات]] + يناير[[#This Row],[إجمالي الواجب]]","v":0},0,0,0,0]
[65,"الفرد رقم 65",null,null,null,null,null,null,null,null,null,null,null,null,null,null,null,null,null,null,null,null,null,null,null,null,null,null,null,null,null,null,null,{"$f":"COUNTIF(C73:AG73,\"غ\") + COUNTIF(C73:AG73,\"0.5\")","v":0},{"$f":"COUNTIF(D73:AG73,\"ح\") + COUNTIF(D73:AH73,\"0.5\") + يناير[[#This Row],[إجمالي المهمات]] + يناير[[#This Row],[إجمالي الواجب]]","v":0},{"$f":"COUNTIF(E73:AG73,\"م\")","v":0},{"$f":"COUNTIF(F73:AG73,\"هـ\")","v":0},{"$f":"COUNTIF(G73:AG73,\"ر\")","v":0},{"$f":"COUNTIF(H73:AG73,\"و\")","v":0}]
[66,"الفرد رقم 66",null,null,null,null,null,null,null,null,null,null,null,null,null,null,null,null,null,null,null,null,null,null,null,null,null,null,null,null,null,null,null,0,{"$f":"COUNTIF(D74:AG74,\"ح\") + COUNTIF(D74:AH74,\"0.5\") + يناير[[#This Row],[إجمالي المهمات]] + يناير[[#This Row],[إجمالي الواجب]]","v":0},0,0,0,0]
[67,"الفرد رقم 67",null,null,null,null,null,null,null,null,null,null,null,null,null,null,null,null,null,null,null,null,null,null,null,null,null,null,null,null,null,null,null,0,{"$f":"COUNTIF(D75:AG75,\"ح\") + COUNTIF(D75:AH75,\"0.5\") + يناير[[#This Row],[إجمالي المهمات]] + يناير[[#This Row],[إجمالي الواجب]]","v":0},0,0,0,0]
[68,"الفرد رقم 68",null,null,null,null,null,null,null,null,null,null,null,null,null,null,null,null,null,null,null,null,null,null,null,null,null,null,null,null,null,null,null,0,{"$f":"COUNTIF(D76:AG76,\"ح\") + COUNTIF(D76:AH76,\"0.5\") + يناير[[#This Row],[إجمالي المهمات]] + يناير[[#This Row],[إجمالي الواجب]]","v":0},0,0,0,0]
[69,"الفرد رقم 69",null,null,null,null,null,null,null,null,null,null,null,null,null,null,null,null,null,null,null,null,null,null,null,null,null,null,null,null,null,null,null,0,{"$f":"COUNTIF(D77:AG77,\"ح\") + COUNTIF(D77:AH77,\"0.5\") + يناير[[#This Row],[إجمالي المهمات]] + يناير[[#This Row],[إجمالي الواجب]]","v":0},0,0,0,0]
[70,"الفرد رقم 70",null,null,null,null,null,null,null,null,null,null,null,null,null,null,null,null,null,null,null,null,null,null,null,null,null,null,null,null,null,null,null,0,{"$f":"COUNTIF(D78:AG78,\"ح\") + COUNTIF(D78:AH78,\"0.5\") + يناير[[#This Row],[إجمالي المهمات]] + يناير[[#This Row],[إجمالي الواجب]]","v":0},0,0,0,0]
[71,"الفرد رقم 71",null,null,null,null,null,null,null,null,null,null,null,null,null,null,null,null,null,null,null,null,null,null,null,null,null,null,null,null,null,null,null,0,{"$f":"COUNTIF(D79:AG79,\"ح\") + COUNTIF(D79:AH79,\"0.5\") + يناير[[#This Row],[إجمالي المهمات]] + يناير[[#This Row],[إجمالي الواجب]]","v":0},0,0,0,0]
[72,"الفرد رقم 72",null,null,null,null,null,null,null,null,null,null,null,null,null,null,null,null,null,null,null,null,null,null,null,null,null,null,null,null,null,null,null,0,{"$f":"COUNTIF(D80:AG80,\"ح\") + COUNTIF(D80:AH80,\"0.5\") + يناير[[#This Row],[إجمالي المهمات]] + يناير[[#This Row],[إجمالي الواجب]]","v":0},0,0,0,0]
[73,"الفرد رقم 73",null,null,null,null,null,null,null,null,null,null,null,null,null,null,null,null,null,null,null,null,null,null,null,null,null,null,null,null,null,null,null,0,{"$f":"COUNTIF(D81:AG81,\"ح\") + COUNTIF(D81:AH81,\"0.5\") + يناير[[#This Row],[إجمالي المهمات]] + يناير[[#This Row],[إجمالي الواجب]]","v":0},0,0,0,0]
[74,"الفرد رقم 74",null,null,null,null,null,null,null,null,null,null,null,null,null,null,null,null,null,null,null,null,null,null,null,null,null,null,null,null,null,null,null,0,{"$f":"COUNTIF(D82:AG82,\"ح\") + COUNTIF(D82:AH82,\"0.5\") + يناير[[#This Row],[إجمالي المهمات]] + يناير[[#This Row],[إجمالي الواجب]]","v":0},0,0,0,0]
[75,"الفرد رقم 75",null,null,null,null,null,null,null,null,null,null,null,null,null,null,null,null,null,null,null,null,null,null,null,null,null,null,null,null,null,null,null,0,{"$f":"COUNTIF(D83:AG83,\"ح\") + COUNTIF(D83:AH83,\"0.5\") + يناير[[#This Row],[إجمالي المهمات]] + يناير[[#This Row],[إجمالي الواجب]]","v":0},0,0,0,0]
[76,"الفرد رقم 76",null,null,null,null,null,null,null,null,null,null,null,null,null,null,null,null,null,null,null,null,null,null,null,null,null,null,null,null,null,null,null,0,{"$f":"COUNTIF(D84:AG84,\"ح\") + COUNTIF(D84:AH84,\"0.5\") + يناير[[#This Row],[إجمالي المهمات]] + يناير[[#This Row],[إجمالي الواجب]]","v":0},0,0,0,0]
[77,"الفرد رقم 77",null,null,null,null,null,null,null,null,null,null,null,null,null,null,null,null,null,null,null,null,null,null,null,null,null,null,null,null,null,null,null,0,{"$f":"COUNTIF(D85:AG85,\"ح\") + COUNTIF(D85:AH85,\"0.5\") + يناير[[#This Row],[إجمالي المهمات]] + يناير[[#This Row],[إجمالي الواجب]]","v":0},0,0,0,0]
[78,"الفرد رقم 78",null,null,null,null,null,null,null,null,null,null,null,null,null,null,null,null,null,null,null,null,null,null,null,null,null,null,null,null,null,null,null,0,{"$f":"COUNTIF(D86:AG86,\"ح\") + COUNTIF(D86:AH86,\"0.5\") + يناير[[#This Row],[إجمالي المهمات]] + يناير[[#This Row],[إجمالي الواجب]]","v":0},0,0,0,0]
[79,"الفرد رقم 79",null,null,null,null,null,null,null,null,null,null,null,null,null,null,null,null,null,null,null,null,null,null,null,null,null,null,null,null,null,null,null,0,{"$f":"COUNTIF(D87:AG87,\"ح\") + COUNTIF(D87:AH87,\"0.5\") + يناير[[#This Row],[إجمالي المهمات]] + يناير[[#This Row],[إجمالي الواجب]]","v":0},0,0,0,0]
[80,"الفرد رقم 80",null,null,null,null,null,null,null,null,null,null,null,null,null,null,null,null,null,null,null,null,null,null,null,null,null,null,null,null,null,null,null,0,{"$f":"COUNTIF(D88:AG88,\"ح\") + COUNTIF(D88:AH88,\"0.5\") + يناير[[#This Row],[إجمالي المهمات]] + يناير[[#This Row],[إجمالي الواجب]]","v":0},0,0,0,0]
[81,"الفرد رقم 81",null,null,null,null,null,null,null,null,null,null,null,null,null,null,null,null,null,null,null,null,null,null,null,null,null,null,null,null,null,null,null,0,{"$f":"COUNTIF(D89:AG89,\"ح\") + COUNTIF(D89:AH89,\"0.5\") + يناير[[#This Row],[إجمالي المهمات]] + يناير[[#This Row],[إجمالي الواجب]]","v":0},0,0,0,0]
[82,"الفرد رقم 82",null,null,null,null,null,null,null,null,null,null,null,null,null,null,null,null,null,null,null,null,null,null,null,null,null,null,null,null,null,null,null,0,{"$f":"COUNTIF(D90:AG90,\"ح\") + COUNTIF(D90:AH90,\"0.5\") + يناير[[#This Row],[إجمالي المهمات]] + يناير[[#This Row],[إجمالي الواجب]]","v":0},0,0,0,0]
[83,"الفرد رقم 83",null,null,null,null,null,null,null,null,null,null,null,null,null,null,null,null,null,null,null,null,null,null,null,null,null,null,null,null,null,null,null,0,{"$f":"COUNTIF(D91:AG91,\"ح\") + COUNTIF(D91:AH91,\"0.5\") + يناير[[#This Row],[إجمالي المهمات]] + يناير[[#This Row],[إجمالي الواجب]]","v":0},0,0,0,0]
[84,"الفرد رقم 84",null,null,null,null,null,null,null,null,null,null,null,null,null,null,null,null,null,null,null,null,null,null,null,null,null,null,null,null,null,null,null,0,{"$f":"COUNTIF(D92:AG92,\"ح\") + COUNTIF(D92:AH92,\"0.5\") + يناير[[#This Row],[إجمالي المهمات]] + يناير[[#This Row],[إجمالي الواجب]]","v":0},0,0,0,0]
[85,"الفرد رقم 85",null,null,null,null,null,null,null,null,null,null,null,null,null,null,null,null,null,null,null,null,null,null,null,null,null,null,null,null,null,null,null,0,{"$f":"COUNTIF(D93:AG93,\"ح\") + COUNTIF(D93:AH93,\"0.5\") + يناير[[#This Row],[إجمالي المهمات]] + يناير[[#This Row],[إجمالي الواجب]]","v":0},0,0,0,0]
[86,"الفرد رقم 86",null,null,null,null,null,null,null,null,null,null,null,null,null,null,null,null,null,null,null,null,null,null,null,null,null,null,null,null,null,null,null,0,{"$f":"COUNTIF(D94:AG94,\"ح\") + COUNTIF(D94:AH94,\"0.5\") + يناير[[#This Row],[إجمالي المهمات]] + يناير[[#This Row],[إجمالي الواجب]]","v":0},0,0,0,0]
[87,"الفرد رقم 87",null,null,null,null,null,null,null,null,null,null,null,null,null,null,null,null,null,null,null,null,null,null,null,null,null,null,null,null,null,null,null,0,{"$f":"COUNTIF(D95:AG95,\"ح\") + COUNTIF(D95:AH95,\"0.5\") + يناير[[#This Row],[إجمالي المهمات]] + يناير[[#This Row],[إجمالي الواجب]]","v":0},0,0,0,0]
[88,"الفرد رقم 88",null,null,null,null,null,null,null,null,null,null,null,null,null,null,null,null,null,null,null,null,null,null,null,null,null,null,null,null,null,null,null,0,{"$f":"COUNTIF(D96:AG96,\"ح\") + COUNTIF(D96:AH96,\"0.5\") + يناير[[#This Row],[إجمالي المهمات]] + يناير[[#This Row],[إجمالي الواجب]]","v":0},0,0,0,0]
[89,"الفرد رقم 89",null,null,null,null,null,null,null,null,null,null,null,null,null,null,null,null,null,null,null,null,null,null,null,null,null,null,null,null,null,null,null,0,{"$f":"COUNTIF(D97:AG97,\"ح\") + COUNTIF(D97:AH97,\"0.5\") + يناير[[#This Row],[إجمالي المهمات]] + يناير[[#This Row],[إجمالي الواجب]]","v":0},0,0,0,0]
[90,"الفرد رقم 90",null,null,null,null,null,null,null,null,null,null,null,null,null,null,null,null,null,null,null,null,null,null,null,null,null,null,null,null,null,null,null,0,{"$f":"COUNTIF(D98:AG98,\"ح\") + COUNTIF(D98:AH98,\"0.5\") + يناير[[#This Row],[إجمالي المهمات]] + يناير[[#This Row],[إجمالي الواجب]]","v":0},0,0,0,0]
[91,"الفرد رقم 91",null,null,null,null,null,null,null,null,null,null,null,null,null,null,null,null,null,null,null,null,null,null,null,null,null,null,null,null,null,null,null,0,{"$f":"COUNTIF(D99:AG99,\"ح\") + COUNTIF(D99:AH99,\"0.5\") + يناير[[#This Row],[إجمالي المهمات]] + يناير[[#This Row],[إجمالي الواجب]]","v":0},0,0,0,0]
[92,"الفرد رقم 92",null,null,null,null,null,null,null,null,null,null,null,null,null,null,null,null,null,null,null,null,null,null,null,null,null,null,null,null,null,null,null,0,{"$f":"COUNTIF(D100:AG100,\"ح\") + COUNTIF(D100:AH100,\"0.5\") + يناير[[#This Row],[إجمالي المهمات]] + يناير[[#This Row],[إجمالي الواجب]]","v":0},0,0,0,0]
[93,"الفرد رقم 93",null,null,null,null,null,null,null,null,null,null,null,null,null,null,null,null,null,null,null,null,null,null,null,null,null,null,null,null,null,null,null,0,{"$f":"COUNTIF(D101:AG101,\"ح\") + COUNTIF(D101:AH101,\"0.5\") + يناير[[#This Row],[إجمالي المهمات]] + يناير[[#This Row],[إجمالي الواجب]]","v":0},0,0,0,0]
[94,"الفرد رقم 94",null,null,null,null,null,null,null,null,null,null,null,null,null,null,null,null,null,null,null,null,null,null,null,null,null,null,null,null,null,null,null,0,{"$f":"COUNTIF(D102:AG102,\"ح\") + COUNTIF(D102:AH102,\"0.5\") + يناير[[#This Row],[إجمالي المهمات]] + يناير[[#This Row],[إجمالي الواجب]]","v":0},0,0,0,0]
[95,"الفرد رقم 95",null,null,null,null,null,null,null,null,null,null,null,null,null,null,null,null,null,null,null,null,null,null,null,null,null,null,null,null,null,null,null,0,{"$f":"COUNTIF(D103:AG103,\"ح\") + COUNTIF(D103:AH103,\"0.5\") + يناير[[#This Row],[إجمالي المهمات]] + يناير[[#This Row],[إجمالي الواجب]]","v":0},0,0,0,0]
[96,"الفرد رقم 96",null,null,null,null,null,null,null,null,null,null,null,null,null,null,null,null,null,null,null,null,null,null,null,null,null,null,null,null,null,null,null,0,{"$f":"COUNTIF(D104:AG104,\"ح\") + COUNTIF(D104:AH104,\"0.5\") + يناير[[#This Row],[إجمالي المهمات]] + يناير[[#This Row],[إجمالي الواجب]]","v":0},0,0,0,0]
[97,"الفرد رقم 97",null,null,null,null,null,null,null,null,null,null,null,null,null,null,null,null,null,null,null,null,null,null,null,null,null,null,null,null,null,null,null,0,{"$f":"COUNTIF(D105:AG105,\"ح\") + COUNTIF(D105:AH105,\"0.5\") + يناير[[#This Row],[إجمالي المهمات]] + يناير[[#This Row],[إجمالي الواجب]]","v":0},0,0,0,0]
[98,"الفرد رقم 98",null,null,null,null,null,null,null,null,null,null,null,null,null,null,null,null,null,null,null,null,null,null,null,null,null,null,null,null,null,null,null,0,{"$f":"COUNTIF(D106:AG106,\"ح\") + COUNTIF(D106:AH106,\"0.5\") + يناير[[#This Row],[إجمالي المهمات]] + يناير[[#This Row],[إجمالي الواجب]]","v":0},0,0,0,0]
[99,"الفرد رقم 99",null,null,null,null,null,null,null,null,null,null,null,null,null,null,null,null,null,null,null,null,null,null,null,null,null,null,null,null,null,null,null,0,{"$f":"COUNTIF(D107:AG107,\"ح\") + COUNTIF(D107:AH107,\"0.5\") + يناير[[#This Row],[إجمالي المهمات]] + يناير[[#This Row],[إجمالي الواجب]]","v":0},0,0,0,0]
[100,"الفرد رقم 100",null,null,null,null,null,null,null,null,null,null,null,null,null,null,null,null,null,null,null,null,null,null,null,null,null,null,null,null,null,null,null,0,{"$f":"COUNTIF(D108:AG108,\"ح\") + COUNTIF(D108:AH108,\"0.5\") + يناير[[#This Row],[إجمالي المهمات]] + يناير[[#This Row],[إجمالي الواجب]]","v":0},0,0,0,0]
[101,"الفرد رقم 101",null,null,null,null,null,null,null,null,null,null,null,null,null,null,null,null,null,null,null,null,null,null,null,null,null,null,null,null,null,null,null,0,{"$f":"COUNTIF(D109:AG109,\"ح\") + COUNTIF(D109:AH109,\"0.5\") + يناير[[#This Row],[إجمالي المهمات]] + يناير[[#This Row],[إجمالي الواجب]]","v":0},0,0,0,0]
[102,"الفرد رقم 102",null,null,null,null,null,null,null,null,null,null,null,null,null,null,null,null,null,null,null,null,null,null,null,null,null,null,null,null,null,null,null,0,{"$f":"COUNTIF(D110:AG110,\"ح\") + COUNTIF(D110:AH110,\"0.5\") + يناير[[#This Row],[إجمالي المهمات]] + يناير[[#This Row],[إجمالي الواجب]]","v":0},0,0,0,0]
[103,"الفرد رقم 103",null,null,null,null,null,null,null,null,null,null,null,null,null,null,null,null,null,null,null,null,null,null,null,null,null,null,null,null,null,null,null,0,{"$f":"COUNTIF(D111:AG111,\"ح\") + COUNTIF(D111:AH111,\"0.5\") + يناير[[#This Row],[إجمالي المهمات]] + يناير[[#This Row],[إجمالي الواجب]]","v":0},0,0,0,0]
[104,"الفرد رقم 104",null,null,null,null,null,null,null,null,null,null,null,null,null,null,null,null,null,null,null,null,null,null,null,null,null,null,null,null,null,null,null,0,{"$f":"COUNTIF(D112:AG112,\"ح\") + COUNTIF(D112:AH112,\"0.5\") + يناير[[#This Row],[إجمالي المهمات]] + يناير[[#This Row],[إجمالي الواجب]]","v":0},0,0,0,0]
[105,"الفرد رقم 105",null,null,null,null,null,null,null,null,null,null,null,null,null,null,null,null,null,null,null,null,null,null,null,null,null,null,null,null,null,null,null,0,{"$f":"COUNTIF(D113:AG113,\"ح\") + COUNTIF(D113:AH113,\"0.5\") + يناير[[#This Row],[إجمالي المهمات]] + يناير[[#This Row],[إجمالي الواجب]]","v":0},0,0,0,0]
[106,"الفرد رقم 106",null,null,null,null,null,null,null,null,null,null,null,null,null,null,null,null,null,null,null,null,null,null,null,null,null,null,null,null,null,null,null,0,{"$f":"COUNTIF(D114:AG114,\"ح\") + COUNTIF(D114:AH114,\"0.5\") + يناير[[#This Row],[إجمالي المهمات]] + يناير[[#This Row],[إجمالي الواجب]]","v":0},0,0,0,0]
[107,"الفرد رقم 107",null,null,null,null,null,null,null,null,null,null,null,null,null,null,null,null,null,null,null,null,null,null,null,null,null,null,null,null,null,null,null,0,{"$f":"COUNTIF(D115:AG115,\"ح\") + COUNTIF(D115:AH115,\"0.5\") + يناير[[#This Row],[إجمالي المهمات]] + يناير[[#This Row],[إجمالي الواجب]]","v":0},0,0,0,0]
[108,"الفرد رقم 108",null,null,null,null,null,null,null,null,null,null,null,null,null,null,null,null,null,null,null,null,null,null,null,null,null,null,null,null,null,null,null,0,{"$f":"COUNTIF(D116:AG116,\"ح\") + COUNTIF(D116:AH116,\"0.5\") + يناير[[#This Row],[إجمالي المهمات]] + يناير[[#This Row],[إجمالي الواجب]]","v":0},0,0,0,0]
[109,"الفرد رقم 109",null,null,null,null,null,null,null,null,null,null,null,null,null,null,null,null,null,null,null,null,null,null,null,null,null,null,null,null,null,null,null,0,{"$f":"COUNTIF(D117:AG117,\"ح\") + COUNTIF(D117:AH117,\"0.5\") + يناير[[#This Row],[إجمالي المهمات]] + يناير[[#This Row],[إجمالي الواجب]]","v":0},0,0,0,0]
[110,"الفرد رقم 110",null,null,null,null,null,null,null,null,null,null,null,null,null,null,null,null,null,null,null,null,null,null,null,null,null,null,null,null,null,null,null,0,{"$f":"COUNTIF(D118:AG118,\"ح\") + COUNTIF(D118:AH118,\"0.5\") + يناير[[#This Row],[إجمالي المهمات]] + يناير[[#This Row],[إجمالي الواجب]]","v":0},0,0,0,0]
[111,"الفرد رقم 111",null,null,null,null,null,null,null,null,null,null,null,null,null,null,null,null,null,null,null,null,null,null,null,null,null,null,null,null,null,null,null,0,{"$f":"COUNTIF(D119:AG119,\"ح\") + COUNTIF(D119:AH119,\"0.5\") + يناير[[#This Row],[إجمالي المهمات]] + يناير[[#This Row],[إجمالي الواجب]]","v":0},0,0,0,0]
[112,"الفرد رقم 112",null,null,null,null,null,null,null,null,null,null,null,null,null,null,null,null,null,null,null,null,null,null,null,null,null,null,null,null,null,null,null,0,{"$f":"COUNTIF(D120:AG120,\"ح\") + COUNTIF(D120:AH120,\"0.5\") + يناير[[#This Row],[إجمالي المهمات]] + يناير[[#This Row],[إجمالي الواجب]]","v":0},0,0,0,0]
[113,"الفرد رقم 113",null,null,null,null,null,null,null,null,null,null,null,null,null,null,null,null,null,null,null,null,null,null,null,null,null,null,null,null,null,null,null,0,{"$f":"COUNTIF(D121:AG121,\"ح\") + COUNTIF(D121:AH121,\"0.5\") + يناير[[#This Row],[إجمالي المهمات]] + يناير[[#This Row],[إجمالي الواجب]]","v":0},0,0,0,0]
[114,"الفرد رقم 114",null,null,null,null,null,null,null,null,null,null,null,null,null,null,null,null,null,null,null,null,null,null,null,null,null,null,null,null,null,null,null,0,{"$f":"COUNTIF(D122:AG122,\"ح\") + COUNTIF(D122:AH122,\"0.5\") + يناير[[#This Row],[إجمالي المهمات]] + يناير[[#This Row],[إجمالي الواجب]]","v":0},0,0,0,0]
[115,"الفرد رقم 115",null,null,null,null,null,null,null,null,null,null,null,null,null,null,null,null,null,null,null,null,null,null,null,null,null,null,null,null,null,null,null,0,{"$f":"COUNTIF(D123:AG123,\"ح\") + COUNTIF(D123:AH123,\"0.5\") + يناير[[#This Row],[إجمالي المهمات]] + يناير[[#This Row],[إجمالي الواجب]]","v":0},0,0,0,0]
[116,"الفرد رقم 116",null,null,null,null,null,null,null,null,null,null,null,null,null,null,null,null,null,null,null,null,null,null,null,null,null,null,null,null,null,null,null,0,{"$f":"COUNTIF(D124:AG124,\"ح\") + COUNTIF(D124:AH124,\"0.5\") + يناير[[#This Row],[إجمالي المهمات]] + يناير[[#This Row],[إجمالي الواجب]]","v":0},0,0,0,0]
[117,"الفرد رقم 117",null,null,null,null,null,null,null,null,null,null,null,null,null,null,null,null,null,null,null,null,null,null,null,null,null,null,null,null,null,null,null,0,{"$f":"COUNTIF(D125:AG125,\"ح\") + COUNTIF(D125:AH125,\"0.5\") + يناير[[#This Row],[إجمالي المهمات]] + يناير[[#This Row],[إجمالي الواجب]]","v":0},0,0,0,0]
[118,"الفرد رقم 118",null,null,null,null,null,null,null,null,null,null,null,null,null,null,null,null,null,null,null,null,null,null,null,null,null,null,null,null,null,null,null,0,{"$f":"COUNTIF(D126:AG126,\"ح\") + COUNTIF(D126:AH126,\"0.5\") + يناير[[#This Row],[إجمالي المهمات]] + يناير[[#This Row],[إجمالي الواجب]]","v":0},0,0,0,0]
[119,"الفرد رقم 119",null,null,null,null,null,null,null,null,null,null,null,null,null,null,null,null,null,null,null,null,null,null,null,null,null,null,null,null,null,null,null,0,{"$f":"COUNTIF(D127:AG127,\"ح\") + COUNTIF(D127:AH127,\"0.5\") + يناير[[#This Row],[إجمالي المهمات]] + يناير[[#This Row],[إجمالي الواجب]]","v":0},0,0,0,0]
[120,"الفرد رقم 120",null,null,null,null,null,null,null,null,null,null,null,null,null,null,null,null,null,null,null,null,null,null,null,null,null,null,null,null,null,null,null,0,{"$f":"COUNTIF(D128:AG128,\"ح\") + COUNTIF(D128:AH128,\"0.5\") + يناير[[#This Row],[إجمالي المهمات]] + يناير[[#This Row],[إجمالي الواجب]]","v":0},0,0,0,0]
[121,"الفرد رقم 121",null,null,null,null,null,null,null,null,null,null,null,null,null,null,null,null,null,null,null,null,null,null,null,null,null,null,null,null,null,null,null,0,{"$f":"COUNTIF(D129:AG129,\"ح\") + COUNTIF(D129:AH129,\"0.5\") + يناير[[#This Row],[إجمالي المهمات]] + يناير[[#This Row],[إجمالي الواجب]]","v":0},0,0,0,0]
[122,"الفرد رقم 122",null,null,null,null,null,null,null,null,null,null,null,null,null,null,null,null,null,null,null,null,null,null,null,null,null,null,null,null,null,null,null,0,{"$f":"COUNTIF(D130:AG130,\"ح\") + COUNTIF(D130:AH130,\"0.5\") + يناير[[#This Row],[إجمالي المهمات]] + يناير[[#This Row],[إجمالي الواجب]]","v":0},0,0,0,0]
[123,"الفرد رقم 123",null,null,null,null,null,null,null,null,null,null,null,null,null,null,null,null,null,null,null,null,null,null,null,null,null,null,null,null,null,null,null,0,{"$f":"COUNTIF(D131:AG131,\"ح\") + COUNTIF(D131:AH131,\"0.5\") + يناير[[#This Row],[إجمالي المهمات]] + يناير[[#This Row],[إجمالي الواجب]]","v":0},0,0,0,0]
[124,"الفرد رقم 124",null,null,null,null,null,null,null,null,null,null,null,null,null,null,null,null,null,null,null,null,null,null,null,null,null,null,null,null,null,null,null,0,{"$f":"COUNTIF(D132:AG132,\"ح\") + COUNTIF(D132:AH132,\"0.5\") + يناير[[#This Row],[إجمالي المهمات]] + يناير[[#This Row],[إجمالي الواجب]]","v":0},0,0,0,0]
[125,"الفرد رقم 125",null,null,null,null,null,null,null,null,null,null,null,null,null,null,null,null,null,null,null,null,null,null,null,null,null,null,null,null,null,null,null,0,{"$f":"COUNTIF(D133:AG133,\"ح\") + COUNTIF(D133:AH133,\"0.5\") + يناير[[#This Row],[إجمالي المهمات]] + يناير[[#This Row],[إجمالي الواجب]]","v":0},0,0,0,0]
[126,"الفرد رقم 126",null,null,null,null,null,null,null,null,null,null,null,null,null,null,null,null,null,null,null,null,null,null,null,null,null,null,null,null,null,null,null,0,{"$f":"COUNTIF(D134:AG134,\"ح\") + COUNTIF(D134:AH134,\"0.5\") + يناير[[#This Row],[إجمالي المهمات]] + يناير[[#This Row],[إجمالي الواجب]]","v":0},0,0,0,0]
[127,"الفرد رقم 127",null,null,null,null,null,null,null,null,null,null,null,null,null,null,null,null,null,null,null,null,null,null,null,null,null,null,null,null,null,null,null,0,{"$f":"COUNTIF(D135:AG135,\"ح\") + COUNTIF(D135:AH135,\"0.5\") + يناير[[#This Row],[إجمالي المهمات]] + يناير[[#This Row],[إجمالي الواجب]]","v":0},0,0,0,0]
[128,"الفرد رقم 128",null,null,null,null,null,null,null,null,null,null,null,null,null,null,null,null,null,null,null,null,null,null,null,null,null,null,null,null,null,null,null,0,{"$f":"COUNTIF(D136:AG136,\"ح\") + COUNTIF(D136:AH136,\"0.5\") + يناير[[#This Row],[إجمالي المهمات]] + يناير[[#This Row],[إجمالي الواجب]]","v":0},0,0,0,0]
[129,"الفرد رقم 129",null,null,null,null,null,null,null,null,null,null,null,null,null,null,null,null,null,null,null,null,null,null,null,null,null,null,null,null,null,null,null,{"$f":"COUNTIF(C137:AG137,\"غ\") + COUNTIF(C137:AG137,\"0.5\")","v":0},{"$f":"COUNTIF(D137:AG137,\"ح\") + COUNTIF(D137:AH137,\"0.5\") + يناير[[#This Row],[إجمالي المهمات]] + يناير[[#This Row],[إجمالي الواجب]]","v":0},{"$f":"COUNTIF(E137:AG137,\"م\")","v":0},{"$f":"COUNTIF(F137:AG137,\"هـ\")","v":0},{"$f":"COUNTIF(G137:AG137,\"ر\")","v":0},{"$f":"COUNTIF(H137:AG137,\"و\")","v":0}]
[130,"الفرد رقم 130",null,null,null,null,null,null,null,null,null,null,null,null,null,null,null,null,null,null,null,null,null,null,null,null,null,null,null,null,null,null,null,0,{"$f":"COUNTIF(D138:AG138,\"ح\") + COUNTIF(D138:AH138,\"0.5\") + يناير[[#This Row],[إجمالي المهمات]] + يناير[[#This Row],[إجمالي الواجب]]","v":0},0,0,0,0]
[131,"الفرد رقم 131",null,null,null,null,null,null,null,null,null,null,null,null,null,null,null,null,null,null,null,null,null,null,null,null,null,null,null,null,null,null,null,0,{"$f":"COUNTIF(D139:AG139,\"ح\") + COUNTIF(D139:AH139,\"0.5\") + يناير[[#This Row],[إجمالي المهمات]] + يناير[[#This Row],[إجمالي الواجب]]","v":0},0,0,0,0]
[132,"الفرد رقم 132",null,null,null,null,null,null,null,null,null,null,null,null,null,null,null,null,null,null,null,null,null,null,null,null,null,null,null,null,null,null,null,0,{"$f":"COUNTIF(D140:AG140,\"ح\") + COUNTIF(D140:AH140,\"0.5\") + يناير[[#This Row],[إجمالي المهمات]] + يناير[[#This Row],[إجمالي الواجب]]","v":0},0,0,0,0]
[133,"الفرد رقم 133",null,null,null,null,null,null,null,null,null,null,null,null,null,null,null,null,null,null,null,null,null,null,null,null,null,null,null,null,null,null,null,0,{"$f":"COUNTIF(D141:AG141,\"ح\") + COUNTIF(D141:AH141,\"0.5\") + يناير[[#This Row],[إجمالي المهمات]] + يناير[[#This Row],[إجمالي الواجب]]","v":0},0,0,0,0]
[134,"الفرد رقم 134",null,null,null,null,null,null,null,null,null,null,null,null,null,null,null,null,null,null,null,null,null,null,null,null,null,null,null,null,null,null,null,0,{"$f":"COUNTIF(D142:AG142,\"ح\") + COUNTIF(D142:AH142,\"0.5\") + يناير[[#This Row],[إجمالي المهمات]] + يناير[[#This Row],[إجمالي الواجب]]","v":0},0,0,0,0]
[135,"الفرد رقم 135",null,null,null,null,null,null,null,null,null,null,null,null,null,null,null,null,null,null,null,null,null,null,null,null,null,null,null,null,null,null,null,0,{"$f":"COUNTIF(D143:AG143,\"ح\") + COUNTIF(D143:AH143,\"0.5\") + يناير[[#This Row],[إجمالي المهمات]] + يناير[[#This Row],[إجمالي الواجب]]","v":0},0,0,0,0]
[136,"الفرد رقم 136",null,null,null,null,null,null,null,null,null,null,null,null,null,null,null,null,null,null,null,null,null,null,null,null,null,null,null,null,null,null,null,0,{"$f":"COUNTIF(D144:AG144,\"ح\") + COUNTIF(D144:AH144,\"0.5\") + يناير[[#This Row],[إجمالي المهمات]] + يناير[[#This Row],[إجمالي الواجب]]","v":0},0,0,0,0]
[137,"الفرد رقم 137",null,null,null,null,null,null,null,null,null,null,null,null,null,null,null,null,null,null,null,null,null,null,null,null,null,null,null,null,null,null,null,0,{"$f":"COUNTIF(D145:AG145,\"ح\") + COUNTIF(D145:AH145,\"0.5\") + يناير[[#This Row],[إجمالي المهمات]] + يناير[[#This Row],[إجمالي الواجب]]","v":0},0,0,0,0]
[138,"الفرد رقم 138",null,null,null,null,null,null,null,null,null,null,null,null,null,null,null,null,null,null,null,null,null,null,null,null,null,null,null,null,null,null,null,0,{"$f":"COUNTIF(D146:AG146,\"ح\") + COUNTIF(D146:AH146,\"0.5\") + يناير[[#This Row],[إجمالي المهمات]] + يناير[[#This Row],[إجمالي الواجب]]","v":0},0,0,0,0]
[139,"الفرد رقم 139",null,null,null,null,null,null,null,null,null,null,null,null,null,null,null,null,null,null,null,null,null,null,null,null,null,null,null,null,null,null,null,0,{"$f":"COUNTIF(D147:AG147,\"ح\") + COUNTIF(D147:AH147,\"0.5\") + يناير[[#This Row],[إجمالي المهمات]] + يناير[[#This Row],[إجمالي الواجب]]","v":0},0,0,0,0]
[140,"الفرد رقم 140",null,null,null,null,null,null,null,null,null,null,null,null,null,null,null,null,null,null,null,null,null,null,null,null,null,null,null,null,null,null,null,0,{"$f":"COUNTIF(D148:AG148,\"ح\") + COUNTIF(D148:AH148,\"0.5\") + يناير[[#This Row],[إجمالي المهمات]] + يناير[[#This Row],[إجمالي الواجب]]","v":0},0,0,0,0]
[141,"الفرد رقم 141",null,null,null,null,null,null,null,null,null,null,null,null,null,null,null,null,null,null,null,null,null,null,null,null,null,null,null,null,null,null,null,0,{"$f":"COUNTIF(D149:AG149,\"ح\") + COUNTIF(D149:AH149,\"0.5\") + يناير[[#This Row],[إجمالي المهمات]] + يناير[[#This Row],[إجمالي الواجب]]","v":0},0,0,0,0]
[142,"الفرد رقم 142",null,null,null,null,null,null,null,null,null,null,null,null,null,null,null,null,null,null,null,null,null,null,null,null,null,null,null,null,null,null,null,0,{"$f":"COUNTIF(D150:AG150,\"ح\") + COUNTIF(D150:AH150,\"0.5\") + يناير[[#This Row],[إجمالي المهمات]] + يناير[[#This Row],[إجمالي الواجب]]","v":0},0,0,0,0]
[143,"الفرد رقم 143",null,null,null,null,null,null,null,null,null,null,null,null,null,null,null,null,null,null,null,null,null,null,null,null,null,null,null,null,null,null,null,0,{"$f":"COUNTIF(D151:AG151,\"ح\") + COUNTIF(D151:AH151,\"0.5\") + يناير[[#This Row],[إجمالي المهمات]] + يناير[[#This Row],[إجمالي الواجب]]","v":0},0,0,0,0]
[144,"الفرد رقم 144",null,null,null,null,null,null,null,null,null,null,null,null,null,null,null,null,null,null,null,null,null,null,null,null,null,null,null,null,null,null,null,0,{"$f":"COUNTIF(D152:AG152,\"ح\") + COUNTIF(D152:AH152,\"0.5\") + يناير[[#This Row],[إجمالي المهمات]] + يناير[[#This Row],[إجمالي الواجب]]","v":0},0,0,0,0]
[145,"الفرد رقم 145",null,null,null,null,null,null,null,null,null,null,null,null,null,null,null,null,null,null,null,null,null,null,null,null,null,null,null,null,null,null,null,0,{"$f":"COUNTIF(D153:AG153,\"ح\") + COUNTIF(D153:AH153,\"0.5\") + يناير[[#This Row],[إجمالي المهمات]] + يناير[[#This Row],[إجمالي الواجب]]","v":0},0,0,0,0]
[146,"الفرد رقم 146",null,null,null,null,null,null,null,null,null,null,null,null,null,null,null,null,null,null,null,null,null,null,null,null,null,null,null,null,null,null,null,0,{"$f":"COUNTIF(D154:AG154,\"ح\") + COUNTIF(D154:AH154,\"0.5\") + يناير[[#This Row],[إجمالي المهمات]] + يناير[[#This Row],[إجمالي الواجب]]","v":0},0,0,0,0]
[147,"الفرد رقم 147",null,null,null,null,null,null,null,null,null,null,null,null,null,null,null,null,null,null,null,null,null,null,null,null,null,null,null,null,null,null,null,0,{"$f":"COUNTIF(D155:AG155,\"ح\") + COUNTIF(D155:AH155,\"0.5\") + يناير[[#This Row],[إجمالي المهمات]] + يناير[[#This Row],[إجمالي الواجب]]","v":0},0,0,0,0]
[148,"الفرد رقم 148",null,null,null,null,null,null,null,null,null,null,null,null,null,null,null,null,null,null,null,null,null,null,null,null,null,null,null,null,null,null,null,0,{"$f":"COUNTIF(D156:AG156,\"ح\") + COUNTIF(D156:AH156,\"0.5\") + يناير[[#This Row],[إجمالي المهمات]] + يناير[[#This Row],[إجمالي الواجب]]","v":0},0,0,0,0]
[149,"الفرد رقم 149",null,null,null,null,null,null,null,null,null,null,null,null,null,null,null,null,null,null,null,null,null,null,null,null,null,null,null,null,null,null,null,0,{"$f":"COUNTIF(D157:AG157,\"ح\") + COUNTIF(D157:AH157,\"0.5\") + يناير[[#This Row],[إجمالي المهمات]] + يناير[[#This Row],[إجمالي الواجب]]","v":0},0,0,0,0]
[150,"الفرد رقم 150",null,null,null,null,null,null,null,null,null,null,null,null,null,null,null,null,null,null,null,null,null,null,null,null,null,null,null,null,null,null,null,0,{"$f":"COUNTIF(D158:AG158,\"ح\") + COUNTIF(D158:AH158,\"0.5\") + يناير[[#This Row],[إجمالي المهمات]] + يناير[[#This Row],[إجمالي الواجب]]","v":0},0,0,0,0]
[151,"الفرد رقم 151",null,null,null,null,null,null,null,null,null,null,null,null,null,null,null,null,null,null,null,null,null,null,null,null,null,null,null,null,null,null,null,0,{"$f":"COUNTIF(D159:AG159,\"ح\") + COUNTIF(D159:AH159,\"0.5\") + يناير[[#This Row],[إجمالي المهمات]] + يناير[[#This Row],[إجمالي الواجب]]","v":0},0,0,0,0]
[152,"الفرد رقم 152",null,null,null,null,null,null,null,null,null,null,null,null,null,null,null,null,null,null,null,null,null,null,null,null,null,null,null,null,null,null,null,0,{"$f":"COUNTIF(D160:AG160,\"ح\") + COUNTIF(D160:AH160,\"0.5\") + يناير[[#This Row],[إجمالي المهمات]] + يناير[[#This Row],[إجمالي الواجب]]","v":0},0,0,0,0]
[153,"الفرد رقم 153",null,null,null,null,null,null,null,null,null,null,null,null,null,null,null,null,null,null,null,null,null,null,null,null,null,null,null,null,null,null,null,0,{"$f":"COUNTIF(D161:AG161,\"ح\") + COUNTIF(D161:AH161,\"0.5\") + يناير[[#This Row],[إجمالي المهمات]] + يناير[[#This Row],[إجمالي الواجب]]","v":0},0,0,0,0]
[154,"الفرد رقم 154",null,null,null,null,null,null,null,null,null,null,null,null,null,null,null,null,null,null,null,null,null,null,null,null,null,null,null,null,null,null,null,0,{"$f":"COUNTIF(D162:AG162,\"ح\") + COUNTIF(D162:AH162,\"0.5\") + يناير[[#This Row],[إجمالي المهمات]] + يناير[[#This Row],[إجمالي الواجب]]","v":0},0,0,0,0]
[155,"الفرد رقم 155",null,null,null,null,null,null,null,null,null,null,null,null,null,null,null,null,null,null,null,null,null,null,null,null,null,null,null,null,null,null,null,0,{"$f":"COUNTIF(D163:AG163,\"ح\") + COUNTIF(D163:AH163,\"0.5\") + يناير[[#This Row],[إجمالي المهمات]] + يناير[[#This Row],[إجمالي الواجب]]","v":0},0,0,0,0]
[156,"الفرد رقم 156",null,null,null,null,null,null,null,null,null,null,null,null,null,null,null,null,null,null,null,null,null,null,null,null,null,null,null,null,null,null,null,0,{"$f":"COUNTIF(D164:AG164,\"ح\") + COUNTIF(D164:AH164,\"0.5\") + يناير[[#This Row],[إجمالي المهمات]] + يناير[[#This Row],[إجمالي الواجب]]","v":0},0,0,0,0]
[157,"الفرد رقم 157",null,null,null,null,null,null,null,null,null,null,null,null,null,null,null,null,null,null,null,null,null,null,null,null,null,null,null,null,null,null,null,0,{"$f":"COUNTIF(D165:AG165,\"ح\") + COUNTIF(D165:AH165,\"0.5\") + يناير[[#This Row],[إجمالي المهمات]] + يناير[[#This Row],[إجمالي الواجب]]","v":0},0,0,0,0]
[158,"الفرد رقم 158",null,null,null,null,null,null,null,null,null,null,null,null,null,null,null,null,null,null,null,null,null,null,null,null,null,null,null,null,null,null,null,0,{"$f":"COUNTIF(D166:AG166,\"ح\") + COUNTIF(D166:AH166,\"0.5\") + يناير[[#This Row],[إجمالي المهمات]] + يناير[[#This Row],[إجمالي الواجب]]","v":0},0,0,0,0]
[159,"الفرد رقم 159",null,null,null,null,null,null,null,null,null,null,null,null,null,null,null,null,null,null,null,null,null,null,null,null,null,null,null,null,null,null,null,0,{"$f":"COUNTIF(D167:AG167,\"ح\") + COUNTIF(D167:AH167,\"0.5\") + يناير[[#This Row],[إجمالي المهمات]] + يناير[[#This Row],[إجمالي الواجب]]","v":0},0,0,0,0]
[160,"الفرد رقم 160",null,null,null,null,null,null,null,null,null,null,null,null,null,null,null,null,null,null,null,null,null,null,null,null,null,null,null,null,null,null,null,0,{"$f":"COUNTIF(D168:AG168,\"ح\") + COUNTIF(D168:AH168,\"0.5\") + يناير[[#This Row],[إجمالي المهمات]] + يناير[[#This Row],[إجمالي الواجب]]","v":0},0,0,0,0]
[161,"الفرد رقم 161",null,null,null,null,null,null,null,null,null,null,null,null,null,null,null,null,null,null,null,null,null,null,null,null,null,null,null,null,null,null,null,0,{"$f":"COUNTIF(D169:AG169,\"ح\") + COUNTIF(D169:AH169,\"0.5\") + يناير[[#This Row],[إجمالي المهمات]] + يناير[[#This Row],[إجمالي الواجب]]","v":0},0,0,0,0]
[162,"الفرد رقم 162",null,null,null,null,null,null,null,null,null,null,null,null,null,null,null,null,null,null,null,null,null,null,null,null,null,null,null,null,null,null,null,0,{"$f":"COUNTIF(D170:AG170,\"ح\") + COUNTIF(D170:AH170,\"0.5\") + يناير[[#This Row],[إجمالي المهمات]] + يناير[[#This Row],[إجمالي الواجب]]","v":0},0,0,0,0]
[163,"الفرد رقم 163",null,null,null,null,null,null,null,null,null,null,null,null,null,null,null,null,null,null,null,null,null,null,null,null,null,null,null,null,null,null,null,0,{"$f":"COUNTIF(D171:AG171,\"ح\") + COUNTIF(D171:AH171,\"0.5\") + يناير[[#This Row],[إجمالي المهمات]] + يناير[[#This Row],[إجمالي الواجب]]","v":0},0,0,0,0]
[164,"الفرد رقم 164",null,null,null,null,null,null,null,null,null,null,null,null,null,null,null,null,null,null,null,null,null,null,null,null,null,null,null,null,null,null,null,0,{"$f":"COUNTIF(D172:AG172,\"ح\") + COUNTIF(D172:AH172,\"0.5\") + يناير[[#This Row],[إجمالي المهمات]] + يناير[[#This Row],[إجمالي الواجب]]","v":0},0,0,0,0]
[165,"الفرد رقم 165",null,null,null,null,null,null,null,null,null,null,null,null,null,null,null,null,null,null,null,null,null,null,null,null,null,null,null,null,null,null,null,0,{"$f":"COUNTIF(D173:AG173,\"ح\") + COUNTIF(D173:AH173,\"0.5\") + يناير[[#This Row],[إجمالي المهمات]] + يناير[[#This Row],[إجمالي الواجب]]","v":0},0,0,0,0]
[166,"الفرد رقم 166",null,null,null,null,null,null,null,null,null,null,null,null,null,null,null,null,null,null,null,null,null,null,null,null,null,null,null,null,null,null,null,0,{"$f":"COUNTIF(D174:AG174,\"ح\") + COUNTIF(D174:AH174,\"0.5\") + يناير[[#This Row],[إجمالي المهمات]] + يناير[[#This Row],[إجمالي الواجب]]","v":0},0,0,0,0]
[167,"الفرد رقم 167",null,null,null,null,null,null,null,null,null,null,null,null,null,null,null,null,null,null,null,null,null,null,null,null,null,null,null,null,null,null,null,0,{"$f":"COUNTIF(D175:AG175,\"ح\") + COUNTIF(D175:AH175,\"0.5\") + يناير[[#This Row],[إجمالي المهمات]] + يناير[[#This Row],[إجمالي الواجب]]","v":0},0,0,0,0]
[168,"الفرد رقم 168",null,null,null,null,null,null,null,null,null,null,null,null,null,null,null,null,null,null,null,null,null,null,null,null,null,null,null,null,null,null,null,0,{"$f":"COUNTIF(D176:AG176,\"ح\") + COUNTIF(D176:AH176,\"0.5\") + يناير[[#This Row],[إجمالي المهمات]] + يناير[[#This Row],[إجمالي الواجب]]","v":0},0,0,0,0]
[169,"الفرد رقم 169",null,null,null,null,null,null,null,null,null,null,null,null,null,null,null,null,null,null,null,null,null,null,null,null,null,null,null,null,null,null,null,0,{"$f":"COUNTIF(D177:AG177,\"ح\") + COUNTIF(D177:AH177,\"0.5\") + يناير[[#This Row],[إجمالي المهمات]] + يناير[[#This Row],[إجمالي الواجب]]","v":0},0,0,0,0]
[170,"الفرد رقم 170",null,null,null,null,null,null,null,null,null,null,null,null,null,null,null,null,null,null,null,null,null,null,null,null,null,null,null,null,null,null,null,0,{"$f":"COUNTIF(D178:AG178,\"ح\") + COUNTIF(D178:AH178,\"0.5\") + يناير[[#This Row],[إجمالي المهمات]] + يناير[[#This Row],[إجمالي الواجب]]","v":0},0,0,0,0]
[171,"الفرد رقم 171",null,null,null,null,null,null,null,null,null,null,null,null,null,null,null,null,null,null,null,null,null,null,null,null,null,null,null,null,null,null,null,0,{"$f":"COUNTIF(D179:AG179,\"ح\") + COUNTIF(D179:AH179,\"0.5\") + يناير[[#This Row],[إجمالي المهمات]] + يناير[[#This Row],[إجمالي الواجب]]","v":0},0,0,0,0]
[172,"الفرد رقم 172",null,null,null,null,null,null,null,null,null,null,null,null,null,null,null,null,null,null,null,null,null,null,null,null,null,null,null,null,null,null,null,0,{"$f":"COUNTIF(D180:AG180,\"ح\") + COUNTIF(D180:AH180,\"0.5\") + يناير[[#This Row],[إجمالي المهمات]] + يناير[[#This Row],[إجمالي الواجب]]","v":0},0,0,0,0]
[173,"الفرد رقم 173",null,null,null,null,null,null,null,null,null,null,null,null,null,null,null,null,null,null,null,null,null,null,null,null,null,null,null,null,null,null,null,0,{"$f":"COUNTIF(D181:AG181,\"ح\") + COUNTIF(D181:AH181,\"0.5\") + يناير[[#This Row],[إجمالي المهمات]] + يناير[[#This Row],[إجمالي الواجب]]","v":0},0,0,0,0]
[174,"الفرد رقم 174",null,null,null,null,null,null,null,null,null,null,null,null,null,null,null,null,null,null,null,null,null,null,null,null,null,null,null,null,null,null,null,0,{"$f":"COUNTIF(D182:AG182,\"ح\") + COUNTIF(D182:AH182,\"0.5\") + يناير[[#This Row],[إجمالي المهمات]] + يناير[[#This Row],[إجمالي الواجب]]","v":0},0,0,0,0]
[175,"الفرد رقم 175",null,null,null,null,null,null,null,null,null,null,null,null,null,null,null,null,null,null,null,null,null,null,null,null,null,null,null,null,null,null,null,0,{"$f":"COUNTIF(D183:AG183,\"ح\") + COUNTIF(D183:AH183,\"0.5\") + يناير[[#This Row],[إجمالي المهمات]] + يناير[[#This Row],[إجمالي الواجب]]","v":0},0,0,0,0]
[176,"الفرد رقم 176",null,null,null,null,null,null,null,null,null,null,null,null,null,null,null,null,null,null,null,null,null,null,null,null,null,null,null,null,null,null,null,0,{"$f":"COUNTIF(D184:AG184,\"ح\") + COUNTIF(D184:AH184,\"0.5\") + يناير[[#This Row],[إجمالي المهمات]] + يناير[[#This Row],[إجمالي الواجب]]","v":0},0,0,0,0]
[177,"الفرد رقم 177",null,null,null,null,null,null,null,null,null,null,null,null,null,null,null,null,null,null,null,null,null,null,null,null,null,null,null,null,null,null,null,0,{"$f":"COUNTIF(D185:AG185,\"ح\") + COUNTIF(D185:AH185,\"0.5\") + يناير[[#This Row],[إجمالي المهمات]] + يناير[[#This Row],[إجمالي الواجب]]","v":0},0,0,0,0]
[178,"الفرد رقم 178",null,null,null,null,null,null,null,null,null,null,null,null,null,null,null,null,null,null,null,null,null,null,null,null,null,null,null,null,null,null,null,0,{"$f":"COUNTIF(D186:AG186,\"ح\") + COUNTIF(D186:AH186,\"0.5\") + يناير[[#This Row],[إجمالي المهمات]] + يناير[[#This Row],[إجمالي الواجب]]","v":0},0,0,0,0]
[179,"الفرد رقم 179",null,null,null,null,null,null,null,null,null,null,null,null,null,null,null,null,null,null,null,null,null,null,null,null,null,null,null,null,null,null,null,0,{"$f":"COUNTIF(D187:AG187,\"ح\") + COUNTIF(D187:AH187,\"0.5\") + يناير[[#This Row],[إجمالي المهمات]] + يناير[[#This Row],[إجمالي الواجب]]","v":0},0,0,0,0]
[180,"الفرد رقم 180",null,null,null,null,null,null,null,null,null,null,null,null,null,null,null,null,null,null,null,null,null,null,null,null,null,null,null,null,null,null,null,0,{"$f":"COUNTIF(D188:AG188,\"ح\") + COUNTIF(D188:AH188,\"0.5\") + يناير[[#This Row],[إجمالي المهمات]] + يناير[[#This Row],[إجمالي الواجب]]","v":0},0,0,0,0]
[181,"الفرد رقم 181",null,null,null,null,null,null,null,null,null,null,null,null,null,null,null,null,null,null,null,null,null,null,null,null,null,null,null,null,null,null,null,0,{"$f":"COUNTIF(D189:AG189,\"ح\") + COUNTIF(D189:AH189,\"0.5\") + يناير[[#This Row],[إجمالي المهمات]] + يناير[[#This Row],[إجمالي الواجب]]","v":0},0,0,0,0]
[182,"الفرد رقم 182",null,null,null,null,null,null,null,null,null,null,null,null,null,null,null,null,null,null,null,null,null,null,null,null,null,null,null,null,null,null,null,0,{"$f":"COUNTIF(D190:AG190,\"ح\") + COUNTIF(D190:AH190,\"0.5\") + يناير[[#This Row],[إجمالي المهمات]] + يناير[[#This Row],[إجمالي الواجب]]","v":0},0,0,0,0]
[183,"الفرد رقم 183",null,null,null,null,null,null,null,null,null,null,null,null,null,null,null,null,null,null,null,null,null,null,null,null,null,null,null,null,null,null,null,0,{"$f":"COUNTIF(D191:AG191,\"ح\") + COUNTIF(D191:AH191,\"0.5\") + يناير[[#This Row],[إجمالي المهمات]] + يناير[[#This Row],[إجمالي الواجب]]","v":0},0,0,0,0]
[184,"الفرد رقم 184",null,null,null,null,null,null,null,null,null,null,null,null,null,null,null,null,null,null,null,null,null,null,null,null,null,null,null,null,null,null,null,0,{"$f":"COUNTIF(D192:AG192,\"ح\") + COUNTIF(D192:AH192,\"0.5\") + يناير[[#This Row],[إجمالي المهمات]] + يناير[[#This Row],[إجمالي الواجب]]","v":0},0,0,0,0]
[185,"الفرد رقم 185",null,null,null,null,null,null,null,null,null,null,null,null,null,null,null,null,null,null,null,null,null,null,null,null,null,null,null,null,null,null,null,0,{"$f":"COUNTIF(D193:AG193,\"ح\") + COUNTIF(D193:AH193,\"0.5\") + يناير[[#This Row],[إجمالي المهمات]] + يناير[[#This Row],[إجمالي الواجب]]","v":0},0,0,0,0]
[186,"الفرد رقم 186",null,null,null,null,null,null,null,null,null,null,null,null,null,null,null,null,null,null,null,null,null,null,null,null,null,null,null,null,null,null,null,0,{"$f":"COUNTIF(D194:AG194,\"ح\") + COUNTIF(D194:AH194,\"0.5\") + يناير[[#This Row],[إجمالي المهمات]] + يناير[[#This Row],[إجمالي الواجب]]","v":0},0,0,0,0]
[187,"الفرد رقم 187",null,null,null,null,null,null,null,null,null,null,null,null,null,null,null,null,null,null,null,null,null,null,null,null,null,null,null,null,null,null,null,0,{"$f":"COUNTIF(D195:AG195,\"ح\") + COUNTIF(D195:AH195,\"0.5\") + يناير[[#This Row],[إجمالي المهمات]] + يناير[[#This Row],[إجمالي الواجب]]","v":0},0,0,0,0]
[188,"الفرد رقم 188",null,null,null,null,null,null,null,null,null,null,null,null,null,null,null,null,null,null,null,null,null,null,null,null,null,null,null,null,null,null,null,0,{"$f":"COUNTIF(D196:AG196,\"ح\") + COUNTIF(D196:AH196,\"0.5\") + يناير[[#This Row],[إجمالي المهمات]] + يناير[[#This Row],[إجمالي الواجب]]","v":0},0,0,0,0]
[189,"الفرد رقم 189",null,null,null,null,null,null,null,null,null,null,null,null,null,null,null,null,null,null,null,null,null,null,null,null,null,null,null,null,null,null,null,0,{"$f":"COUNTIF(D197:AG197,\"ح\") + COUNTIF(D197:AH197,\"0.5\") + يناير[[#This Row],[إجمالي المهمات]] + يناير[[#This Row],[إجمالي الواجب]]","v":0},0,0,0,0]
[190,"الفرد رقم 190",null,null,null,null,null,null,null,null,null,null,null,null,null,null,null,null,null,null,null,null,null,null,null,null,null,null,null,null,null,null,null,0,{"$f":"COUNTIF(D198:AG198,\"ح\") + COUNTIF(D198:AH198,\"0.5\") + يناير[[#This Row],[إجمالي المهمات]] + يناير[[#This Row],[إجمالي الواجب]]","v":0},0,0,0,0]
[191,"الفرد رقم 191",null,null,null,null,null,null,null,null,null,null,null,null,null,null,null,null,null,null,null,null,null,null,null,null,null,null,null,null,null,null,null,0,{"$f":"COUNTIF(D199:AG199,\"ح\") + COUNTIF(D199:AH199,\"0.5\") + يناير[[#This Row],[إجمالي المهمات]] + يناير[[#This Row],[إجمالي الواجب]]","v":0},0,0,0,0]
[192,"الفرد رقم 192",null,null,null,null,null,null,null,null,null,null,null,null,null,null,null,null,null,null,null,null,null,null,null,null,null,null,null,null,null,null,null,0,{"$f":"COUNTIF(D200:AG200,\"ح\") + COUNTIF(D200:AH200,\"0.5\") + يناير[[#This Row],[إجمالي المهمات]] + يناير[[#This Row],[إجمالي الواجب]]","v":0},0,0,0,0]
[193,"الفرد رقم 193",null,null,null,null,null,null,null,null,null,null,null,null,null,null,null,null,null,null,null,null,null,null,null,null,null,null,null,null,null,null,null,{"$f":"COUNTIF(C201:AG201,\"غ\") + COUNTIF(C201:AG201,\"0.5\")","v":0},{"$f":"COUNTIF(D201:AG201,\"ح\") + COUNTIF(D201:AH201,\"0.5\") + يناير[[#This Row],[إجمالي المهمات]] + يناير[[#This Row],[إجمالي الواجب]]","v":0},{"$f":"COUNTIF(E201:AG201,\"م\")","v":0},{"$f":"COUNTIF(F201:AG201,\"هـ\")","v":0},{"$f":"COUNTIF(G201:AG201,\"ر\")","v":0},{"$f":"COUNTIF(H201:AG201,\"و\")","v":0}]
[194,"الفرد رقم 194",null,null,null,null,null,null,null,null,null,null,null,null,null,null,null,null,null,null,null,null,null,null,null,null,null,null,null,null,null,null,null,0,{"$f":"COUNTIF(D202:AG202,\"ح\") + COUNTIF(D202:AH202,\"0.5\") + يناير[[#This Row],[إجمالي المهمات]] + يناير[[#This Row],[إجمالي الواجب]]","v":0},0,0,0,0]
[195,"الفرد رقم 195",null,null,null,null,null,null,null,null,null,null,null,null,null,null,null,null,null,null,null,null,null,null,null,null,null,null,null,null,null,null,null,0,{"$f":"COUNTIF(D203:AG203,\"ح\") + COUNTIF(D203:AH203,\"0.5\") + يناير[[#This Row],[إجمالي المهمات]] + يناير[[#This Row],[إجمالي الواجب]]","v":0},0,0,0,0]
[196,"الفرد رقم 196",null,null,null,null,null,null,null,null,null,null,null,null,null,null,null,null,null,null,null,null,null,null,null,null,null,null,null,null,null,null,null,0,{"$f":"COUNTIF(D204:AG204,\"ح\") + COUNTIF(D204:AH204,\"0.5\") + يناير[[#This Row],[إجمالي المهمات]] + يناير[[#This Row],[إجمالي الواجب]]","v":0},0,0,0,0]
[197,"الفرد رقم 197",null,null,null,null,null,null,null,null,null,null,null,null,null,null,null,null,null,null,null,null,null,null,null,null,null,null,null,null,null,null,null,0,{"$f":"COUNTIF(D205:AG205,\"ح\") + COUNTIF(D205:AH205,\"0.5\") + يناير[[#This Row],[إجمالي المهمات]] + يناير[[#This Row],[إجمالي الواجب]]","v":0},0,0,0,0]
[198,"الفرد رقم 198",null,null,null,null,null,null,null,null,null,null,null,null,null,null,null,null,null,null,null,null,null,null,null,null,null,null,null,null,null,null,null,0,{"$f":"COUNTIF(D206:AG206,\"ح\") + COUNTIF(D206:AH206,\"0.5\") + يناير[[#This Row],[إجمالي المهمات]] + يناير[[#This Row],[إجمالي الواجب]]","v":0},0,0,0,0]
[199,"الفرد رقم 199",null,null,null,null,null,null,null,null,null,null,null,null,null,null,null,null,null,null,null,null,null,null,null,null,null,null,null,null,null,null,null,0,{"$f":"COUNTIF(D207:AG207,\"ح\") + COUNTIF(D207:AH207,\"0.5\") + يناير[[#This Row],[إجمالي المهمات]] + يناير[[#This Row],[إجمالي الواجب]]","v":0},0,0,0,0]
[200,"الفرد رقم 200",null,null,null,null,null,null,null,null,null,null,null,null,null,null,null,null,null,null,null,null,null,null,null,null,null,null,null,null,null,null,null,0,{"$f":"COUNTIF(D208:AG208,\"ح\") + COUNTIF(D208:AH208,\"0.5\") + يناير[[#This Row],[إجمالي المهمات]] + يناير[[#This Row],[إجمالي الواجب]]","v":0},0,0,0,0]
[201,"الفرد رقم 201",null,null,null,null,null,null,null,null,null,null,null,null,null,null,null,null,null,null,null,null,null,null,null,null,null,null,null,null,null,null,null,0,{"$f":"COUNTIF(D209:AG209,\"ح\") + COUNTIF(D209:AH209,\"0.5\") + يناير[[#This Row],[إجمالي المهمات]] + يناير[[#This Row],[إجمالي الواجب]]","v":0},0,0,0,0]
[202,"الفرد رقم 202",null,null,null,null,null,null,null,null,null,null,null,null,null,null,null,null,null,null,null,null,null,null,null,null,null,null,null,null,null,null,null,0,{"$f":"COUNTIF(D210:AG210,\"ح\") + COUNTIF(D210:AH210,\"0.5\") + يناير[[#This Row],[إجمالي المهمات]] + يناير[[#This Row],[إجمالي الواجب]]","v":0},0,0,0,0]
[203,"الفرد رقم 203",null,null,null,null,null,null,null,null,null,null,null,null,null,null,null,null,null,null,null,null,null,null,null,null,null,null,null,null,null,null,null,0,{"$f":"COUNTIF(D211:AG211,\"ح\") + COUNTIF(D211:AH211,\"0.5\") + يناير[[#This Row],[إجمالي المهمات]] + يناير[[#This Row],[إجمالي الواجب]]","v":0},0,0,0,0]
[204,"الفرد رقم 204",null,null,null,null,null,null,null,null,null,null,null,null,null,null,null,null,null,null,null,null,null,null,null,null,null,null,null,null,null,null,null,0,{"$f":"COUNTIF(D212:AG212,\"ح\") + COUNTIF(D212:AH212,\"0.5\") + يناير[[#This Row],[إجمالي المهمات]] + يناير[[#This Row],[إجمالي الواجب]]","v":0},0,0,0,0]
[205,"الفرد رقم 205",null,null,null,null,null,null,null,null,null,null,null,null,null,null,null,null,null,null,null,null,null,null,null,null,null,null,null,null,null,null,null,0,{"$f":"COUNTIF(D213:AG213,\"ح\") + COUNTIF(D213:AH213,\"0.5\") + يناير[[#This Row],[إجمالي المهمات]] + يناير[[#This Row],[إجمالي الواجب]]","v":0},0,0,0,0]
[206,"الفرد رقم 206",null,null,null,null,null,null,null,null,null,null,null,null,null,null,null,null,null,null,null,null,null,null,null,null,null,null,null,null,null,null,null,0,{"$f":"COUNTIF(D214:AG214,\"ح\") + COUNTIF(D214:AH214,\"0.5\") + يناير[[#This Row],[إجمالي المهمات]] + يناير[[#This Row],[إجمالي الواجب]]","v":0},0,0,0,0]
[207,"الفرد رقم 207",null,null,null,null,null,null,null,null,null,null,null,null,null,null,null,null,null,null,null,null,null,null,null,null,null,null,null,null,null,null,null,0,{"$f":"COUNTIF(D215:AG215,\"ح\") + COUNTIF(D215:AH215,\"0.5\") + يناير[[#This Row],[إجمالي المهمات]] + يناير[[#This Row],[إجمالي الواجب]]","v":0},0,0,0,0]
[208,"الفرد رقم 208",null,null,null,null,null,null,null,null,null,null,null,null,null,null,null,null,null,null,null,null,null,null,null,null,null,null,null,null,null,null,null,0,{"$f":"COUNTIF(D216:AG216,\"ح\") + COUNTIF(D216:AH216,\"0.5\") + يناير[[#This Row],[إجمالي المهمات]] + يناير[[#This Row],[إجمالي الواجب]]","v":0},0,0,0,0]
[209,"الفرد رقم 209",null,null,null,null,null,null,null,null,null,null,null,null,null,null,null,null,null,null,null,null,null,null,null,null,null,null,null,null,null,null,null,0,{"$f":"COUNTIF(D217:AG217,\"ح\") + COUNTIF(D217:AH217,\"0.5\") + يناير[[#This Row],[إجمالي المهمات]] + يناير[[#This Row],[إجمالي الواجب]]","v":0},0,0,0,0]
[210,"الفرد رقم 210",null,null,null,null,null,null,null,null,null,null,null,null,null,null,null,null,null,null,null,null,null,null,null,null,null,null,null,null,null,null,null,0,{"$f":"COUNTIF(D218:AG218,\"ح\") + COUNTIF(D218:AH218,\"0.5\") + يناير[[#This Row],[إجمالي المهمات]] + يناير[[#This Row],[إجمالي الواجب]]","v":0},0,0,0,0]
[211,"الفرد رقم 211",null,null,null,null,null,null,null,null,null,null,null,null,null,null,null,null,null,null,null,null,null,null,null,null,null,null,null,null,null,null,null,0,{"$f":"COUNTIF(D219:AG219,\"ح\") + COUNTIF(D219:AH219,\"0.5\") + يناير[[#This Row],[إجمالي المهمات]] + يناير[[#This Row],[إجمالي الواجب]]","v":0},0,0,0,0]
[212,"الفرد رقم 212",null,null,null,null,null,null,null,null,null,null,null,null,null,null,null,null,null,null,null,null,null,null,null,null,null,null,null,null,null,null,null,0,{"$f":"COUNTIF(D220:AG220,\"ح\") + COUNTIF(D220:AH220,\"0.5\") + يناير[[#This Row],[إجمالي المهمات]] + يناير[[#This Row],[إجمالي الواجب]]","v":0},0,0,0,0]
[213,"الفرد رقم 213",null,null,null,null,null,null,null,null,null,null,null,null,null,null,null,null,null,null,null,null,null,null,null,null,null,null,null,null,null,null,null,0,{"$f":"COUNTIF(D221:AG221,\"ح\") + COUNTIF(D221:AH221,\"0.5\") + يناير[[#This Row],[إجمالي المهمات]] + يناير[[#This Row],[إجمالي الواجب]]","v":0},0,0,0,0]
[214,"الفرد رقم 214",null,null,null,null,null,null,null,null,null,null,null,null,null,null,null,null,null,null,null,null,null,null,null,null,null,null,null,null,null,null,null,0,{"$f":"COUNTIF(D222:AG222,\"ح\") + COUNTIF(D222:AH222,\"0.5\") + يناير[[#This Row],[إجمالي المهمات]] + يناير[[#This Row],[إجمالي الواجب]]","v":0},0,0,0,0]
[215,"الفرد رقم 215",null,null,null,null,null,null,null,null,null,null,null,null,null,null,null,null,null,null,null,null,null,null,null,null,null,null,null,null,null,null,null,0,{"$f":"COUNTIF(D223:AG223,\"ح\") + COUNTIF(D223:AH223,\"0.5\") + يناير[[#This Row],[إجمالي المهمات]] + يناير[[#This Row],[إجمالي الواجب]]","v":0},0,0,0,0]
[216,"الفرد رقم 216",null,null,null,null,null,null,null,null,null,null,null,null,null,null,null,null,null,null,null,null,null,null,null,null,null,null,null,null,null,null,null,0,{"$f":"COUNTIF(D224:AG224,\"ح\") + COUNTIF(D224:AH224,\"0.5\") + يناير[[#This Row],[إجمالي المهمات]] + يناير[[#This Row],[إجمالي الواجب]]","v":0},0,0,0,0]
[217,"الفرد رقم 217",null,null,null,null,null,null,null,null,null,null,null,null,null,null,null,null,null,null,null,null,null,null,null,null,null,null,null,null,null,null,null,0,{"$f":"COUNTIF(D225:AG225,\"ح\") + COUNTIF(D225:AH225,\"0.5\") + يناير[[#This Row],[إجمالي المهمات]] + يناير[[#This Row],[إجمالي الواجب]]","v":0},0,0,0,0]
[218,"الفرد رقم 218",null,null,null,null,null,null,null,null,null,null,null,null,null,null,null,null,null,null,null,null,null,null,null,null,null,null,null,null,null,null,null,0,{"$f":"COUNTIF(D226:AG226,\"ح\") + COUNTIF(D226:AH226,\"0.5\") + يناير[[#This Row],[إجمالي المهمات]] + يناير[[#This Row],[إجمالي الواجب]]","v":0},0,0,0,0]
[219,"الفرد رقم 219",null,null,null,null,null,null,null,null,null,null,null,null,null,null,null,null,null,null,null,null,null,null,null,null,null,null,null,null,null,null,null,0,{"$f":"COUNTIF(D227:AG227,\"ح\") + COUNTIF(D227:AH227,\"0.5\") + يناير[[#This Row],[إجمالي المهمات]] + يناير[[#This Row],[إجمالي الواجب]]","v":0},0,0,0,0]
[220,"الفرد رقم 220",null,null,null,null,null,null,null,null,null,null,null,null,null,null,null,null,null,null,null,null,null,null,null,null,null,null,null,null,null,null,null,0,{"$f":"COUNTIF(D228:AG228,\"ح\") + COUNTIF(D228:AH228,\"0.5\") + يناير[[#This Row],[إجمالي المهمات]] + يناير[[#This Row],[إجمالي الواجب]]","v":0},0,0,0,0]
[221,"الفرد رقم 221",null,null,null,null,null,null,null,null,null,null,null,null,null,null,null,null,null,null,null,null,null,null,null,null,null,null,null,null,null,null,null,0,{"$f":"COUNTIF(D229:AG229,\"ح\") + COUNTIF(D229:AH229,\"0.5\") + يناير[[#This Row],[إجمالي المهمات]] + يناير[[#This Row],[إجمالي الواجب]]","v":0},0,0,0,0]
[222,"الفرد رقم 222",null,null,null,null,null,null,null,null,null,null,null,null,null,null,null,null,null,null,null,null,null,null,null,null,null,null,null,null,null,null,null,0,{"$f":"COUNTIF(D230:AG230,\"ح\") + COUNTIF(D230:AH230,\"0.5\") + يناير[[#This Row],[إجمالي المهمات]] + يناير[[#This Row],[إجمالي الواجب]]","v":0},0,0,0,0]
[223,"الفرد رقم 223",null,null,null,null,null,null,null,null,null,null,null,null,null,null,null,null,null,null,null,null,null,null,null,null,null,null,null,null,null,null,null,0,{"$f":"COUNTIF(D231:AG231,\"ح\") + COUNTIF(D231:AH231,\"0.5\") + يناير[[#This Row],[إجمالي المهمات]] + يناير[[#This Row],[إجمالي الواجب]]","v":0},0,0,0,0]
[224,"الفرد رقم 224",null,null,null,null,null,null,null,null,null,null,null,null,null,null,null,null,null,null,null,null,null,null,null,null,null,null,null,null,null,null,null,0,{"$f":"COUNTIF(D232:AG232,\"ح\") + COUNTIF(D232:AH232,\"0.5\") + يناير[[#This Row],[إجمالي المهمات]] + يناير[[#This Row],[إجمالي الواجب]]","v":0},0,0,0,0]
[225,"الفرد رقم 225",null,null,null,null,null,null,null,null,null,null,null,null,null,null,null,null,null,null,null,null,null,null,null,null,null,null,null,null,null,null,null,0,{"$f":"COUNTIF(D233:AG233,\"ح\") + COUNTIF(D233:AH233,\"0.5\") + يناير[[#This Row],[إجمالي المهمات]] + يناير[[#This Row],[إجمالي الواجب]]","v":0},0,0,0,0]
[226,"الفرد رقم 226",null,null,null,null,null,null,null,null,null,null,null,null,null,null,null,null,null,null,null,null,null,null,null,null,null,null,null,null,null,null,null,0,{"$f":"COUNTIF(D234:AG234,\"ح\") + COUNTIF(D234:AH234,\"0.5\") + يناير[[#This Row],[إجمالي المهمات]] + يناير[[#This Row],[إجمالي الواجب]]","v":0},0,0,0,0]
[227,"الفرد رقم 227",null,null,null,null,null,null,null,null,null,null,null,null,null,null,null,null,null,null,null,null,null,null,null,null,null,null,null,null,null,null,null,0,{"$f":"COUNTIF(D235:AG235,\"ح\") + COUNTIF(D235:AH235,\"0.5\") + يناير[[#This Row],[إجمالي المهمات]] + يناير[[#This Row],[إجمالي الواجب]]","v":0},0,0,0,0]
[228,"الفرد رقم 228",null,null,null,null,null,null,null,null,null,null,null,null,null,null,null,null,null,null,null,null,null,null,null,null,null,null,null,null,null,null,null,0,{"$f":"COUNTIF(D236:AG236,\"ح\") + COUNTIF(D236:AH236,\"0.5\") + يناير[[#This Row],[إجمالي المهمات]] + يناير[[#This Row],[إجمالي الواجب]]","v":0},0,0,0,0]
[229,"الفرد رقم 229",null,null,null,null,null,null,null,null,null,null,null,null,null,null,null,null,null,null,null,null,null,null,null,null,null,null,null,null,null,null,null,0,{"$f":"COUNTIF(D237:AG237,\"ح\") + COUNTIF(D237:AH237,\"0.5\") + يناير[[#This Row],[إجمالي المهمات]] + يناير[[#This Row],[إجمالي الواجب]]","v":0},0,0,0,0]
[230,"الفرد رقم 230",null,null,null,null,null,null,null,null,null,null,null,null,null,null,null,null,null,null,null,null,null,null,null,null,null,null,null,null,null,null,null,0,{"$f":"COUNTIF(D238:AG238,\"ح\") + COUNTIF(D238:AH238,\"0.5\") + يناير[[#This Row],[إجمالي المهمات]] + يناير[[#This Row],[إجمالي الواجب]]","v":0},0,0,0,0]
[231,"الفرد رقم 231",null,null,null,null,null,null,null,null,null,null,null,null,null,null,null,null,null,null,null,null,null,null,null,null,null,null,null,null,null,null,null,0,{"$f":"COUNTIF(D239:AG239,\"ح\") + COUNTIF(D239:AH239,\"0.5\") + يناير[[#This Row],[إجمالي المهمات]] + يناير[[#This Row],[إجمالي الواجب]]","v":0},0,0,0,0]
[232,"الفرد رقم 232",null,null,null,null,null,null,null,null,null,null,null,null,null,null,null,null,null,null,null,null,null,null,null,null,null,null,null,null,null,null,null,0,{"$f":"COUNTIF(D240:AG240,\"ح\") + COUNTIF(D240:AH240,\"0.5\") + يناير[[#This Row],[إجمالي المهمات]] + يناير[[#This Row],[إجمالي الواجب]]","v":0},0,0,0,0]
[233,"الفرد رقم 233",null,null,null,null,null,null,null,null,null,null,null,null,null,null,null,null,null,null,null,null,null,null,null,null,null,null,null,null,null,null,null,0,{"$f":"COUNTIF(D241:AG241,\"ح\") + COUNTIF(D241:AH241,\"0.5\") + يناير[[#This Row],[إجمالي المهمات]] + يناير[[#This Row],[إجمالي الواجب]]","v":0},0,0,0,0]
[234,"الفرد رقم 234",null,null,null,null,null,null,null,null,null,null,null,null,null,null,null,null,null,null,null,null,null,null,null,null,null,null,null,null,null,null,null,0,{"$f":"COUNTIF(D242:AG242,\"ح\") + COUNTIF(D242:AH242,\"0.5\") + يناير[[#This Row],[إجمالي المهمات]] + يناير[[#This Row],[إجمالي الواجب]]","v":0},0,0,0,0]
[235,"الفرد رقم 235",null,null,null,null,null,null,null,null,null,null,null,null,null,null,null,null,null,null,null,null,null,null,null,null,null,null,null,null,null,null,null,0,{"$f":"COUNTIF(D243:AG243,\"ح\") + COUNTIF(D243:AH243,\"0.5\") + يناير[[#This Row],[إجمالي المهمات]] + يناير[[#This Row],[إجمالي الواجب]]","v":0},0,0,0,0]
[236,"الفرد رقم 236",null,null,null,null,null,null,null,null,null,null,null,null,null,null,null,null,null,null,null,null,null,null,null,null,null,null,null,null,null,null,null,0,{"$f":"COUNTIF(D244:AG244,\"ح\") + COUNTIF(D244:AH244,\"0.5\") + يناير[[#This Row],[إجمالي المهمات]] + يناير[[#This Row],[إجمالي الواجب]]","v":0},0,0,0,0]
[237,"الفرد رقم 237",null,null,null,null,null,null,null,null,null,null,null,null,null,null,null,null,null,null,null,null,null,null,null,null,null,null,null,null,null,null,null,0,{"$f":"COUNTIF(D245:AG245,\"ح\") + COUNTIF(D245:AH245,\"0.5\") + يناير[[#This Row],[إجمالي المهمات]] + يناير[[#This Row],[إجمالي الواجب]]","v":0},0,0,0,0]
[238,"الفرد رقم 238",null,null,null,null,null,null,null,null,null,null,null,null,null,null,null,null,null,null,null,null,null,null,null,null,null,null,null,null,null,null,null,0,{"$f":"COUNTIF(D246:AG246,\"ح\") + COUNTIF(D246:AH246,\"0.5\") + يناير[[#This Row],[إجمالي المهمات]] + يناير[[#This Row],[إجمالي الواجب]]","v":0},0,0,0,0]
[239,"الفرد رقم 239",null,null,null,null,null,null,null,null,null,null,null,null,null,null,null,null,null,null,null,null,null,null,null,null,null,null,null,null,null,null,null,0,{"$f":"COUNTIF(D247:AG247,\"ح\") + COUNTIF(D247:AH247,\"0.5\") + يناير[[#This Row],[إجمالي المهمات]] + يناير[[#This Row],[إجمالي الواجب]]","v":0},0,0,0,0]
[240,"الفرد رقم 240",null,null,null,null,null,null,null,null,null,null,null,null,null,null,null,null,null,null,null,null,null,null,null,null,null,null,null,null,null,null,null,0,{"$f":"COUNTIF(D248:AG248,\"ح\") + COUNTIF(D248:AH248,\"0.5\") + يناير[[#This Row],[إجمالي المهمات]] + يناير[[#This Row],[إجمالي الواجب]]","v":0},0,0,0,0]
[241,"الفرد رقم 241",null,null,null,null,null,null,null,null,null,null,null,null,null,null,null,null,null,null,null,null,null,null,null,null,null,null,null,null,null,null,null,0,{"$f":"COUNTIF(D249:AG249,\"ح\") + COUNTIF(D249:AH249,\"0.5\") + يناير[[#This Row],[إجمالي المهمات]] + يناير[[#This Row],[إجمالي الواجب]]","v":0},0,0,0,0]
[242,"الفرد رقم 242",null,null,null,null,null,null,null,null,null,null,null,null,null,null,null,null,null,null,null,null,null,null,null,null,null,null,null,null,null,null,null,0,{"$f":"COUNTIF(D250:AG250,\"ح\") + COUNTIF(D250:AH250,\"0.5\") + يناير[[#This Row],[إجمالي المهمات]] + يناير[[#This Row],[إجمالي الواجب]]","v":0},0,0,0,0]
[243,"الفرد رقم 243",null,null,null,null,null,null,null,null,null,null,null,null,null,null,null,null,null,null,null,null,null,null,null,null,null,null,null,null,null,null,null,0,{"$f":"COUNTIF(D251:AG251,\"ح\") + COUNTIF(D251:AH251,\"0.5\") + يناير[[#This Row],[إجمالي المهمات]] + يناير[[#This Row],[إجمالي الواجب]]","v":0},0,0,0,0]
[244,"الفرد رقم 244",null,null,null,null,null,null,null,null,null,null,null,null,null,null,null,null,null,null,null,null,null,null,null,null,null,null,null,null,null,null,null,0,{"$f":"COUNTIF(D252:AG252,\"ح\") + COUNTIF(D252:AH252,\"0.5\") + يناير[[#This Row],[إجمالي المهمات]] + يناير[[#This Row],[إجمالي الواجب]]","v":0},0,0,0,0]
[245,"الفرد رقم 245",null,null,null,null,null,null,null,null,null,null,null,null,null,null,null,null,null,null,null,null,null,null,null,null,null,null,null,null,null,null,null,0,{"$f":"COUNTIF(D253:AG253,\"ح\") + COUNTIF(D253:AH253,\"0.5\") + يناير[[#This Row],[إجمالي المهمات]] + يناير[[#This Row],[إجمالي الواجب]]","v":0},0,0,0,0]
[246,"الفرد رقم 246",null,null,null,null,null,null,null,null,null,null,null,null,null,null,null,null,null,null,null,null,null,null,null,null,null,null,null,null,null,null,null,0,{"$f":"COUNTIF(D254:AG254,\"ح\") + COUNTIF(D254:AH254,\"0.5\") + يناير[[#This Row],[إجمالي المهمات]] + يناير[[#This Row],[إجمالي الواجب]]","v":0},0,0,0,0]
[247,"الفرد رقم 247",null,null,null,null,null,null,null,null,null,null,null,null,null,null,null,null,null,null,null,null,null,null,null,null,null,null,null,null,null,null,null,0,{"$f":"COUNTIF(D255:AG255,\"ح\") + COUNTIF(D255:AH255,\"0.5\") + يناير[[#This Row],[إجمالي المهمات]] + يناير[[#This Row],[إجمالي الواجب]]","v":0},0,0,0,0]
[248,"الفرد رقم 248",null,null,null,null,null,null,null,null,null,null,null,null,null,null,null,null,null,null,null,null,null,null,null,null,null,null,null,null,null,null,null,0,{"$f":"COUNTIF(D256:AG256,\"ح\") + COUNTIF(D256:AH256,\"0.5\") + يناير[[#This Row],[إجمالي المهمات]] + يناير[[#This Row],[إجمالي الواجب]]","v":0},0,0,0,0]
[249,"الفرد رقم 249",null,null,null,null,null,null,null,null,null,null,null,null,null,null,null,null,null,null,null,null,null,null,null,null,null,null,null,null,null,null,null,0,{"$f":"COUNTIF(D257:AG257,\"ح\") + COUNTIF(D257:AH257,\"0.5\") + يناير[[#This Row],[إجمالي المهمات]] + يناير[[#This Row],[إجمالي الواجب]]","v":0},0,0,0,0]
[250,"الفرد رقم 250",null,null,null,null,null,null,null,null,null,null,null,null,null,null,null,null,null,null,null,null,null,null,null,null,null,null,null,null,null,null,null,0,{"$f":"COUNTIF(D258:AG258,\"ح\") + COUNTIF(D258:AH258,\"0.5\") + يناير[[#This Row],[إجمالي المهمات]] + يناير[[#This Row],[إجمالي الواجب]]","v":0},0,0,0,0]
[251,"الفرد رقم 251",null,null,null,null,null,null,null,null,null,null,null,null,null,null,null,null,null,null,null,null,null,null,null,null,null,null,null,null,null,null,null,0,{"$f":"COUNTIF(D259:AG259,\"ح\") + COUNTIF(D259:AH259,\"0.5\") + يناير[[#This Row],[إجمالي المهمات]] + يناير[[#This Row],[إجمالي الواجب]]","v":0},0,0,0,0]
[252,"الفرد رقم 252",null,null,null,null,null,null,null,null,null,null,null,null,null,null,null,null,null,null,null,null,null,null,null,null,null,null,null,null,null,null,null,0,{"$f":"COUNTIF(D260:AG260,\"ح\") + COUNTIF(D260:AH260,\"0.5\") + يناير[[#This Row],[إجمالي المهمات]] + يناير[[#This Row],[إجمالي الواجب]]","v":0},0,0,0,0]
[253,"الفرد رقم 253",null,null,null,null,null,null,null,null,null,null,null,null,null,null,null,null,null,null,null,null,null,null,null,null,null,null,null,null,null,null,null,0,{"$f":"COUNTIF(D261:AG261,\"ح\") + COUNTIF(D261:AH261,\"0.5\") + يناير[[#This Row],[إجمالي المهمات]] + يناير[[#This Row],[إجمالي الواجب]]","v":0},0,0,0,0]
[254,"الفرد رقم 254",null,null,null,null,null,null,null,null,null,null,null,null,null,null,null,null,null,null,null,null,null,null,null,null,null,null,null,null,null,null,null,0,{"$f":"COUNTIF(D262:AG262,\"ح\") + COUNTIF(D262:AH262,\"0.5\") + يناير[[#This Row],[إجمالي المهمات]] + يناير[[#This Row],[إجمالي الواجب]]","v":0},0,0,0,0]
[255,"الفرد رقم 255",null,null,null,null,null,null,null,null,null,null,null,null,null,null,null,null,null,null,null,null,null,null,null,null,null,null,null,null,null,null,null,0,{"$f":"COUNTIF(D263:AG263,\"ح\") + COUNTIF(D263:AH263,\"0.5\") + يناير[[#This Row],[إجمالي المهمات]] + يناير[[#This Row],[إجمالي الواجب]]","v":0},0,0,0,0]
[256,"الفرد رقم 256",null,null,null,null,null,null,null,null,null,null,null,null,null,null,null,null,null,null,null,null,null,null,null,null,null,null,null,null,null,null,null,0,{"$f":"COUNTIF(D264:AG264,\"ح\") + COUNTIF(D264:AH264,\"0.5\") + يناير[[#This Row],[إجمالي المهمات]] + يناير[[#This Row],[إجمالي الواجب]]","v":0},0,0,0,0]
[257,"الفرد رقم 257",null,null,null,null,null,null,null,null,null,null,null,null,null,null,null,null,null,null,null,null,null,null,null,null,null,null,null,null,null,null,null,{"$f":"COUNTIF(C265:AG265,\"غ\") + COUNTIF(C265:AG265,\"0.5\")","v":0},{"$f":"COUNTIF(D265:AG265,\"ح\") + COUNTIF(D265:AH265,\"0.5\") + يناير[[#This Row],[إجمالي المهمات]] + يناير[[#This Row],[إجمالي الواجب]]","v":0},0,0,0,0]
[null,{"$f":"MonthName&\" الإجمالي\"","v":"يناير الإجمالي"},{"$f":"SUBTOTAL(103,يناير!$C$9:$C$265)","v":0},{"$f":"SUBTOTAL(103,يناير!$D$9:$D$265)","v":0},{"$f":"SUBTOTAL(103,يناير!$E$9:$E$265)","v":0},{"$f":"SUBTOTAL(103,يناير!$F$9:$F$265)","v":0},{"$f":"SUBTOTAL(103,يناير!$G$9:$G$265)","v":0},{"$f":"SUBTOTAL(103,يناير!$H$9:$H$265)","v":0},{"$f":"SUBTOTAL(103,يناير!$I$9:$I$265)","v":0},{"$f":"SUBTOTAL(103,يناير!$J$9:$J$265)","v":0},{"$f":"SUBTOTAL(103,يناير!$K$9:$K$265)","v":0},{"$f":"SUBTOTAL(103,يناير!$L$9:$L$265)","v":0},{"$f":"SUBTOTAL(103,يناير!$M$9:$M$265)","v":0},{"$f":"SUBTOTAL(103,يناير!$N$9:$N$265)","v":0},{"$f":"SUBTOTAL(103,يناير!$O$9:$O$265)","v":0},{"$f":"SUBTOTAL(103,يناير!$P$9:$P$265)","v":0},{"$f":"SUBTOTAL(103,يناير!$Q$9:$Q$265)","v":0},{"$f":"SUBTOTAL(103,يناير!$R$9:$R$265)","v":0},{"$f":"SUBTOTAL(103,يناير!$S$9:$S$265)","v":0},{"$f":"SUBTOTAL(103,يناير!$T$9:$T$265)","v":0},{"$f":"SUBTOTAL(103,يناير!$U$9:$U$265)","v":0},{"$f":"SUBTOTAL(103,يناير!$V$9:$V$265)","v":0},{"$f":"SUBTOTAL(103,يناير!$W$9:$W$265)","v":0},{"$f":"SUBTOTAL(103,يناير!$X$9:$X$265)","v":0},{"$f":"SUBTOTAL(103,يناير!$Y$9:$Y$265)","v":0},{"$f":"SUBTOTAL(103,يناير!$Z$9:$Z$265)","v":0},{"$f":"SUBTOTAL(103,يناير!$AA$9:$AA$265)","v":0},{"$f":"SUBTOTAL(103,يناير!$AB$9:$AB$265)","v":0},{"$f":"SUBTOTAL(103,يناير!$AC$9:$AC$265)","v":0},{"$f":"SUBTOTAL(103,يناير!$AD$9:$AD$265)","v":0},{"$f":"SUBTOTAL(103,يناير!$AE$9:$AE$265)","v":0},{"$f":"SUBTOTAL(103,يناير!$AF$9:$AF$265)","v":0},{"$f":"SUBTOTAL(103,يناير!$AG$9:$AG$265)","v":0},{"$f":"SUBTOTAL(109,يناير[إجمالي الغياب])","v":0},{"$f":"SUBTOTAL(109,يناير[إجمالي الحضور])","v":0},{"$f":"SUBTOTAL(109,يناير[إجمالي المرض])","v":0},{"$f":"SUBTOTAL(109,يناير[إجمالي المهمات])","v":0},{"$f":"SUBTOTAL(109,يناير[إجمالي الرخصة])","v":0},{"$f":"SUBTOTAL(109,يناير[إجمالي الواجب])","v":0}]

{"sheet":"Interface","index":1,"n_rows":20,"n_cols":454,"rows_kept":20,"cut":false,"hidden":false,"merged":[]}
[]
[]
[null,null,null,null,null,"تم تسجيل دخولك إلى النظام بنجاح"]
[null,null,null,null,null,null,null,null,null,null,null,null,null,null,null,null,null,null,null,null,null,null,null,null,null,null,null,null,null,null,null,null,null,null,null,null,null,null,null,null,null,null,null,null,null,null,null,null,null,null,null,null,null,null,null,null,null,null,null,null,null,null,null,null,null,null,null,null,null,null,null,null,null,null,null,null,null,null,null,null,null,null,null,null,null,null,null,null,null,null,null,null,null,null,null,null,null,null,null,null,null,null,null,null,null,null,null,null,null,null,null,null,null,null,null,null,null,null,null,null,null,null,null,null,null,null,null,null,null,null,null,null,null,null,null,null,null,null,null,null,null,null,null,null,null,null,null,null,null,null,null,null,null,null,null,null,null,null,null,null,null,null,null,null,null,null,null,null,null,null,null,null,null,null,null,null,null,null,null,null,null,null,null,null,null,null,null,null,null,null,null,null,null,null,null,null,null,null,null,null,null,null,null,null,null,null,null,null,null,null,null,null,null,null,null,null,null,null,null,null,null,null,null,null,null,null,null,null,null,null,null,null,null,null,null,null,null,null,null,null,null,null,null,null,null,null,null,null,null,null,null,null,null,null,null,null,null,null,null,null,null,null,null,null,null,null,null,null,null,null,null,null,null,null,null,null,null,null,null,null,null,null,null,null,null,null,null,null,null,null,null,null,null,null,null,null,null,null,null,null,null,null,null,null,null,null,null,null,null,null,null,null,null,null,null,null,null,null,null,null,null,null,null,null,null,null,null,null,null,null,null,null,null,null,null,null,null,null,null,null,null,null,null,null,null,null,null,null,null,null,null,null,null,null,null,null,null,null,null,null,null,null,null,null,null,null,null,null,null,null,null,null,null,null,null,null,null,null,null,null,null,null,null,null,null,null,null,null,null,null,null,null,null,null,null,null,null,null,null,null,null,null,null,null,null,null,null,null,null,null,null,null,null,null,null,null,null,null,null,null,null,null,null,null,null,null,null,null,null,null,null,null,null,null,null,null,null,null,null,null,null,null,null,null,null,null,null,null,null,null,null,null,null,"Interface"]
[null,null,null,null,null,null,null,null,null,null,null,null,null,null,null,null,null,null,null,null,null,null,null,null,null,null,null,null,null,null,null,null,null,null,null,null,null,null,null,null,null,null,null,null,null,null,null,null,null,null,null,null,null,null,null,null,null,null,null,null,null,null,null,null,null,null,null,null,null,null,null,null,null,null,null,null,null,null,null,null,null,null,null,null,null,null,null,null,null,null,null,null,null,null,null,null,null,null,null,null,null,null,null,null,null,null,null,null,null,null,null,null,null,null,null,null,null,null,null,null,null,null,null,null,null,null,null,null,null,null,null,null,null,null,null,null,null,null,null,null,null,null,null,null,null,null,null,null,null,null,null,null,null,null,null,null,null,null,null,null,null,null,null,null,null,null,null,null,null,null,null,null,null,null,null,null,null,null,null,null,null,null,null,null,null,null,null,null,null,null,null,null,null,null,null,null,null,null,null,null,null,null,null,null,null,null,null,null,null,null,null,null,null,null,null,null,null,null,null,null,null,null,null,null,null,null,null,null,null,null,null,null,null,null,null,null,null,null,null,null,null,null,null,null,null,null,null,null,null,null,null,null,null,null,null,null,null,null,null,null,null,null,null,null,null,null,null,null,null,null,null,null,null,null,null,null,null,null,null,null,null,null,null,null,null,null,null,null,null,null,null,null,null,null,null,null,null,null,null,null,null,null,null,null,null,null,null,null,null,null,null,null,null,null,null,null,null,null,null,null,null,null,null,null,null,null,null,null,null,null,null,null,null,null,null,null,null,null,null,null,null,null,null,null,null,null,null,null,null,null,null,null,null,null,null,null,null,null,null,null,null,null,null,null,null,null,null,null,null,null,null,null,null,null,null,null,null,null,null,null,null,null,null,null,null,null,null,null,null,null,null,null,null,null,null,null,null,null,null,null,null,null,null,null,null,null,null,null,null,null,null,null,null,null,null,null,null,null,null,null,null,null,null,null,null,null,null,null,null,null,null,null,null,null,null,null,null,null,null,null,null,null,null,null,null,null,null,null,null,null,null,null,null,"January"]
[null,null,null,null,null,null,null,null,null,null,null,null,null,null,null,null,null,null,null,null,null,null,null,null,null,null,null,null,null,null,null,null,null,null,null,null,null,null,null,null,null,null,null,null,null,null,null,null,null,null,null,null,null,null,null,null,null,null,null,null,null,null,null,null,null,null,null,null,null,null,null,null,null,null,null,null,null,null,null,null,null,null,null,null,null,null,null,null,null,null,null,null,null,null,null,null,null,null,null,null,null,null,null,null,null,null,null,null,null,null,null,null,null,null,null,null,null,null,null,null,null,null,null,null,null,null,null,null,null,null,null,null,null,null,null,null,null,null,null,null,null,null,null,null,null,null,null,null,null,null,null,null,null,null,null,null,null,null,null,null,null,null,null,null,null,null,null,null,null,null,null,null,null,null,null,null,null,null,null,null,null,null,null,null,null,null,null,null,null,null,null,null,null,null,null,null,null,null,null,null,null,null,null,null,null,null,null,null,null,null,null,null,null,null,null,null,null,null,null,null,null,null,null,null,null,null,null,null,null,null,null,null,null,null,null,null,null,null,null,null,null,null,null,null,null,null,null,null,null,null,null,null,null,null,null,null,null,null,null,null,null,null,null,null,null,null,null,null,null,null,null,null,null,null,null,null,null,null,null,null,null,null,null,null,null,null,null,null,null,null,null,null,null,null,null,null,null,null,null,null,null,null,null,null,null,null,null,null,null,null,null,null,null,null,null,null,null,null,null,null,null,null,null,null,null,null,null,null,null,null,null,null,null,null,null,null,null,null,null,null,null,null,null,null,null,null,null,null,null,null,null,null,null,null,null,null,null,null,null,null,null,null,null,null,null,null,null,null,null,null,null,null,null,null,null,null,null,null,null,null,null,null,null,null,null,null,null,null,null,null,null,null,null,null,null,null,null,null,null,null,null,null,null,null,null,null,null,null,null,null,null,null,null,null,null,null,null,null,null,null,null,null,null,null,null,null,null,null,null,null,null,null,null,null,null,null,null,null,null,null,null,null,null,null,null,null,null,null,null,null,null,null,null,"February"]
[null,null,null,null,null,null,null,null,null,null,null,null,null,null,null,null,null,null,null,null,null,null,null,null,null,null,null,null,null,null,null,null,null,null,null,null,null,null,null,null,null,null,null,null,null,null,null,null,null,null,null,null,null,null,null,null,null,null,null,null,null,null,null,null,null,null,null,null,null,null,null,null,null,null,null,null,null,null,null,null,null,null,null,null,null,null,null,null,null,null,null,null,null,null,null,null,null,null,null,null,null,null,null,null,null,null,null,null,null,null,null,null,null,null,null,null,null,null,null,null,null,null,null,null,null,null,null,null,null,null,null,null,null,null,null,null,null,null,null,null,null,null,null,null,null,null,null,null,null,null,null,null,null,null,null,null,null,null,null,null,null,null,null,null,null,null,null,null,null,null,null,null,null,null,null,null,null,null,null,null,null,null,null,null,null,null,null,null,null,null,null,null,null,null,null,null,null,null,null,null,null,null,null,null,null,null,null,null,null,null,null,null,null,null,null,null,null,null,null,null,null,null,null,null,null,null,null,null,null,null,null,null,null,null,null,null,null,null,null,null,null,null,null,null,null,null,null,null,null,null,null,null,null,null,null,null,null,null,null,null,null,null,null,null,null,null,null,null,null,null,null,null,null,null,null,null,null,null,null,null,null,null,null,null,null,null,null,null,null,null,null,null,null,null,null,null,null,null,null,null,null,null,null,null,null,null,null,null,null,null,null,null,null,null,null,null,null,null,null,null,null,null,null,null,null,null,null,null,null,null,null,null,null,null,null,null,null,null,null,null,null,null,null,null,null,null,null,null,null,null,null,null,null,null,null,null,null,null,null,null,null,null,null,null,null,null,null,null,null,null,null,null,null,null,null,null,null,null,null,null,null,null,null,null,null,null,null,null,null,null,null,null,null,null,null,null,null,null,null,null,null,null,null,null,null,null,null,null,null,null,null,null,null,null,null,null,null,null,null,null,null,null,null,null,null,null,null,null,null,null,null,null,null,null,null,null,null,null,null,null,null,null,null,null,null,null,null,null,null,null,null,null,null,"March"]
[null,null,null,null,null,null,null,null,null,null,null,null,null,null,null,null,null,null,null,null,null,null,null,null,null,null,null,null,null,null,null,null,null,null,null,null,null,null,null,null,null,null,null,null,null,null,null,null,null,null,null,null,null,null,null,null,null,null,null,null,null,null,null,null,null,null,null,null,null,null,null,null,null,null,null,null,null,null,null,null,null,null,null,null,null,null,null,null,null,null,null,null,null,null,null,null,null,null,null,null,null,null,null,null,null,null,null,null,null,null,null,null,null,null,null,null,null,null,null,null,null,null,null,null,null,null,null,null,null,null,null,null,null,null,null,null,null,null,null,null,null,null,null,null,null,null,null,null,null,null,null,null,null,null,null,null,null,null,null,null,null,null,null,null,null,null,null,null,null,null,null,null,null,null,null,null,null,null,null,null,null,null,null,null,null,null,null,null,null,null,null,null,null,null,null,null,null,null,null,null,null,null,null,null,null,null,null,null,null,null,null,null,null,null,null,null,null,null,null,null,null,null,null,null,null,null,null,null,null,null,null,null,null,null,null,null,null,null,null,null,null,null,null,null,null,null,null,null,null,null,null,null,null,null,null,null,null,null,null,null,null,null,null,null,null,null,null,null,null,null,null,null,null,null,null,null,null,null,null,null,null,null,null,null,null,null,null,null,null,null,null,null,null,null,null,null,null,null,null,null,null,null,null,null,null,null,null,null,null,null,null,null,null,null,null,null,null,null,null,null,null,null,null,null,null,null,null,null,null,null,null,null,null,null,null,null,null,null,null,null,null,null,null,null,null,null,null,null,null,null,null,null,null,null,null,null,null,null,null,null,null,null,null,null,null,null,null,null,null,null,null,null,null,null,null,null,null,null,null,null,null,null,null,null,null,null,null,null,null,null,null,null,null,null,null,null,null,null,null,null,null,null,null,null,null,null,null,null,null,null,null,null,null,null,null,null,null,null,null,null,null,null,null,null,null,null,null,null,null,null,null,null,null,null,null,null,null,null,null,null,null,null,null,null,null,null,null,null,null,null,null,null,null,"April"]
[null,null,null,null,null,null,null,null,null,null,null,null,null,null,null,null,null,null,null,null,null,null,null,null,null,null,null,null,null,null,null,null,null,null,null,null,null,null,null,null,null,null,null,null,null,null,null,null,null,null,null,null,null,null,null,null,null,null,null,null,null,null,null,null,null,null,null,null,null,null,null,null,null,null,null,null,null,null,null,null,null,null,null,null,null,null,null,null,null,null,null,null,null,null,null,null,null,null,null,null,null,null,null,null,null,null,null,null,null,null,null,null,null,null,null,null,null,null,null,null,null,null,null,null,null,null,null,null,null,null,null,null,null,null,null,null,null,null,null,null,null,null,null,null,null,null,null,null,null,null,null,null,null,null,null,null,null,null,null,null,null,null,null,null,null,null,null,null,null,null,null,null,null,null,null,null,null,null,null,null,null,null,null,null,null,null,null,null,null,null,null,null,null,null,null,null,null,null,null,null,null,null,null,null,null,null,null,null,null,null,null,null,null,null,null,null,null,null,null,null,null,null,null,null,null,null,null,null,null,null,null,null,null,null,null,null,null,null,null,null,null,null,null,null,null,null,null,null,null,null,null,null,null,null,null,null,null,null,null,null,null,null,null,null,null,null,null,null,null,null,null,null,null,null,null,null,null,null,null,null,null,null,null,null,null,null,null,null,null,null,null,null,null,null,null,null,null,null,null,null,null,null,null,null,null,null,null,null,null,null,null,null,null,null,null,null,null,null,null,null,null,null,null,null,null,null,null,null,null,null,null,null,null,null,null,null,null,null,null,null,null,null,null,null,null,null,null,null,null,null,null,null,null,null,null,null,null,null,null,null,null,null,null,null,null,null,null,null,null,null,null,null,null,null,null,null,null,null,null,null,null,null,null,null,null,null,null,null,null,null,null,null,null,null,null,null,null,null,null,null,null,null,null,null,null,null,null,null,null,null,null,null,null,null,null,null,null,null,null,null,null,null,null,null,null,null,null,null,null,null,null,null,null,null,null,null,null,null,null,null,null,null,null,null,null,null,null,null,null,null,null,null,null,"May"]
[null,null,null,null,null,null,null,null,null,null,null,null,null,null,null,null,null,null,null,null,null,null,null,null,null,null,null,null,null,null,null,null,null,null,null,null,null,null,null,null,null,null,null,null,null,null,null,null,null,null,null,null,null,null,null,null,null,null,null,null,null,null,null,null,null,null,null,null,null,null,null,null,null,null,null,null,null,null,null,null,null,null,null,null,null,null,null,null,null,null,null,null,null,null,null,null,null,null,null,null,null,null,null,null,null,null,null,null,null,null,null,null,null,null,null,null,null,null,null,null,null,null,null,null,null,null,null,null,null,null,null,null,null,null,null,null,null,null,null,null,null,null,null,null,null,null,null,null,null,null,null,null,null,null,null,null,null,null,null,null,null,null,null,null,null,null,null,null,null,null,null,null,null,null,null,null,null,null,null,null,null,null,null,null,null,null,null,null,null,null,null,null,null,null,null,null,null,null,null,null,null,null,null,null,null,null,null,null,null,null,null,null,null,null,null,null,null,null,null,null,null,null,null,null,null,null,null,null,null,null,null,null,null,null,null,null,null,null,null,null,null,null,null,null,null,null,null,null,null,null,null,null,null,null,null,null,null,null,null,null,null,null,null,null,null,null,null,null,null,null,null,null,null,null,null,null,null,null,null,null,null,null,null,null,null,null,null,null,null,null,null,null,null,null,null,null,null,null,null,null,null,null,null,null,null,null,null,null,null,null,null,null,null,null,null,null,null,null,null,null,null,null,null,null,null,null,null,null,null,null,null,null,null,null,null,null,null,null,null,null,null,null,null,null,null,null,null,null,null,null,null,null,null,null,null,null,null,null,null,null,null,null,null,null,null,null,null,null,null,null,null,null,null,null,null,null,null,null,null,null,null,null,null,null,null,null,null,null,null,null,null,null,null,null,null,null,null,null,null,null,null,null,null,null,null,null,null,null,null,null,null,null,null,null,null,null,null,null,null,null,null,null,null,null,null,null,null,null,null,null,null,null,null,null,null,null,null,null,null,null,null,null,null,null,null,null,null,null,null,null,null,null,null,"June"]
[null,null,null,null,null,null,null,null,null,null,null,null,null,null,null,null,null,null,null,null,null,null,null,null,null,null,null,null,null,null,null,null,null,null,null,null,null,null,null,null,null,null,null,null,null,null,null,null,null,null,null,null,null,null,null,null,null,null,null,null,null,null,null,null,null,null,null,null,null,null,null,null,null,null,null,null,null,null,null,null,null,null,null,null,null,null,null,null,null,null,null,null,null,null,null,null,null,null,null,null,null,null,null,null,null,null,null,null,null,null,null,null,null,null,null,null,null,null,null,null,null,null,null,null,null,null,null,null,null,null,null,null,null,null,null,null,null,null,null,null,null,null,null,null,null,null,null,null,null,null,null,null,null,null,null,null,null,null,null,null,null,null,null,null,null,null,null,null,null,null,null,null,null,null,null,null,null,null,null,null,null,null,null,null,null,null,null,null,null,null,null,null,null,null,null,null,null,null,null,null,null,null,null,null,null,null,null,null,null,null,null,null,null,null,null,null,null,null,null,null,null,null,null,null,null,null,null,null,null,null,null,null,null,null,null,null,null,null,null,null,null,null,null,null,null,null,null,null,null,null,null,null,null,null,null,null,null,null,null,null,null,null,null,null,null,null,null,null,null,null,null,null,null,null,null,null,null,null,null,null,null,null,null,null,null,null,null,null,null,null,null,null,null,null,null,null,null,null,null,null,null,null,null,null,null,null,null,null,null,null,null,null,null,null,null,null,null,null,null,null,null,null,null,null,null,null,null,null,null,null,null,null,null,null,null,null,null,null,null,null,null,null,null,null,null,null,null,null,null,null,null,null,null,null,null,null,null,null,null,null,null,null,null,null,null,null,null,null,null,null,null,null,null,null,null,null,null,null,null,null,null,null,null,null,null,null,null,null,null,null,null,null,null,null,null,null,null,null,null,null,null,null,null,null,null,null,null,null,null,null,null,null,null,null,null,null,null,null,null,null,null,null,null,null,null,null,null,null,null,null,null,null,null,null,null,null,null,null,null,null,null,null,null,null,null,null,null,null,null,null,null,null,null,"July"]
[null,null,null,null,null,null,null,null,null,null,null,null,null,null,null,null,null,null,null,null,null,null,null,null,null,null,null,null,null,null,null,null,null,null,null,null,null,null,null,null,null,null,null,null,null,null,null,null,null,null,null,null,null,null,null,null,null,null,null,null,null,null,null,null,null,null,null,null,null,null,null,null,null,null,null,null,null,null,null,null,null,null,null,null,null,null,null,null,null,null,null,null,null,null,null,null,null,null,null,null,null,null,null,null,null,null,null,null,null,null,null,null,null,null,null,null,null,null,null,null,null,null,null,null,null,null,null,null,null,null,null,null,null,null,null,null,null,null,null,null,null,null,null,null,null,null,null,null,null,null,null,null,null,null,null,null,null,null,null,null,null,null,null,null,null,null,null,null,null,null,null,null,null,null,null,null,null,null,null,null,null,null,null,null,null,null,null,null,null,null,null,null,null,null,null,null,null,null,null,null,null,null,null,null,null,null,null,null,null,null,null,null,null,null,null,null,null,null,null,null,null,null,null,null,null,null,null,null,null,null,null,null,null,null,null,null,null,null,null,null,null,null,null,null,null,null,null,null,null,null,null,null,null,null,null,null,null,null,null,null,null,null,null,null,null,null,null,null,null,null,null,null,null,null,null,null,null,null,null,null,null,null,null,null,null,null,null,null,null,null,null,null,null,null,null,null,null,null,null,null,null,null,null,null,null,null,null,null,null,null,null,null,null,null,null,null,null,null,null,null,null,null,null,null,null,null,null,null,null,null,null,null,null,null,null,null,null,null,null,null,null,null,null,null,null,null,null,null,null,null,null,null,null,null,null,null,null,null,null,null,null,null,null,null,null,null,null,null,null,null,null,null,null,null,null,null,null,null,null,null,null,null,null,null,null,null,null,null,null,null,null,null,null,null,null,null,null,null,null,null,null,null,null,null,null,null,null,null,null,null,null,null,null,null,null,null,null,null,null,null,null,null,null,null,null,null,null,null,null,null,null,null,null,null,null,null,null,null,null,null,null,null,null,null,null,null,null,null,null,null,null,null,null,"August"]
[null,null,null,null,null,null,null,null,null,null,null,null,null,null,null,null,null,null,null,null,null,null,null,null,null,null,null,null,null,null,null,null,null,null,null,null,null,null,null,null,null,null,null,null,null,null,null,null,null,null,null,null,null,null,null,null,null,null,null,null,null,null,null,null,null,null,null,null,null,null,null,null,null,null,null,null,null,null,null,null,null,null,null,null,null,null,null,null,null,null,null,null,null,null,null,null,null,null,null,null,null,null,null,null,null,null,null,null,null,null,null,null,null,null,null,null,null,null,null,null,null,null,null,null,null,null,null,null,null,null,null,null,null,null,null,null,null,null,null,null,null,null,null,null,null,null,null,null,null,null,null,null,null,null,null,null,null,null,null,null,null,null,null,null,null,null,null,null,null,null,null,null,null,null,null,null,null,null,null,null,null,null,null,null,null,null,null,null,null,null,null,null,null,null,null,null,null,null,null,null,null,null,null,null,null,null,null,null,null,null,null,null,null,null,null,null,null,null,null,null,null,null,null,null,null,null,null,null,null,null,null,null,null,null,null,null,null,null,null,null,null,null,null,null,null,null,null,null,null,null,null,null,null,null,null,null,null,null,null,null,null,null,null,null,null,null,null,null,null,null,null,null,null,null,null,null,null,null,null,null,null,null,null,null,null,null,null,null,null,null,null,null,null,null,null,null,null,null,null,null,null,null,null,null,null,null,null,null,null,null,null,null,null,null,null,null,null,null,null,null,null,null,null,null,null,null,null,null,null,null,null,null,null,null,null,null,null,null,null,null,null,null,null,null,null,null,null,null,null,null,null,null,null,null,null,null,null,null,null,null,null,null,null,null,null,null,null,null,null,null,null,null,null,null,null,null,null,null,null,null,null,null,null,null,null,null,null,null,null,null,null,null,null,null,null,null,null,null,null,null,null,null,null,null,null,null,null,null,null,null,null,null,null,null,null,null,null,null,null,null,null,null,null,null,null,null,null,null,null,null,null,null,null,null,null,null,null,null,null,null,null,null,null,null,null,null,null,null,null,null,null,null,null,"September"]
[null,null,null,null,null,null,null,null,null,null,null,null,null,null,null,null,null,null,null,null,null,null,null,null,null,null,null,null,null,null,null,null,null,null,null,null,null,null,null,null,null,null,null,null,null,null,null,null,null,null,null,null,null,null,null,null,null,null,null,null,null,null,null,null,null,null,null,null,null,null,null,null,null,null,null,null,null,null,null,null,null,null,null,null,null,null,null,null,null,null,null,null,null,null,null,null,null,null,null,null,null,null,null,null,null,null,null,null,null,null,null,null,null,null,null,null,null,null,null,null,null,null,null,null,null,null,null,null,null,null,null,null,null,null,null,null,null,null,null,null,null,null,null,null,null,null,null,null,null,null,null,null,null,null,null,null,null,null,null,null,null,null,null,null,null,null,null,null,null,null,null,null,null,null,null,null,null,null,null,null,null,null,null,null,null,null,null,null,null,null,null,null,null,null,null,null,null,null,null,null,null,null,null,null,null,null,null,null,null,null,null,null,null,null,null,null,null,null,null,null,null,null,null,null,null,null,null,null,null,null,null,null,null,null,null,null,null,null,null,null,null,null,null,null,null,null,null,null,null,null,null,null,null,null,null,null,null,null,null,null,null,null,null,null,null,null,null,null,null,null,null,null,null,null,null,null,null,null,null,null,null,null,null,null,null,null,null,null,null,null,null,null,null,null,null,null,null,null,null,null,null,null,null,null,null,null,null,null,null,null,null,null,null,null,null,null,null,null,null,null,null,null,null,null,null,null,null,null,null,null,null,null,null,null,null,null,null,null,null,null,null,null,null,null,null,null,null,null,null,null,null,null,null,null,null,null,null,null,null,null,null,null,null,null,null,null,null,null,null,null,null,null,null,null,null,null,null,null,null,null,null,null,null,null,null,null,null,null,null,null,null,null,null,null,null,null,null,null,null,null,null,null,null,null,null,null,null,null,null,null,null,null,null,null,null,null,null,null,null,null,null,null,null,null,null,null,null,null,null,null,null,null,null,null,null,null,null,null,null,null,null,null,null,null,null,null,null,null,null,null,null,null,null,"October"]
[null,null,null,null,null,null,null,null,null,null,null,null,null,null,null,null,null,null,null,null,null,null,null,null,null,null,null,null,null,null,null,null,null,null,null,null,null,null,null,null,null,null,null,null,null,null,null,null,null,null,null,null,null,null,null,null,null,null,null,null,null,null,null,null,null,null,null,null,null,null,null,null,null,null,null,null,null,null,null,null,null,null,null,null,null,null,null,null,null,null,null,null,null,null,null,null,null,null,null,null,null,null,null,null,null,null,null,null,null,null,null,null,null,null,null,null,null,null,null,null,null,null,null,null,null,null,null,null,null,null,null,null,null,null,null,null,null,null,null,null,null,null,null,null,null,null,null,null,null,null,null,null,null,null,null,null,null,null,null,null,null,null,null,null,null,null,null,null,null,null,null,null,null,null,null,null,null,null,null,null,null,null,null,null,null,null,null,null,null,null,null,null,null,null,null,null,null,null,null,null,null,null,null,null,null,null,null,null,null,null,null,null,null,null,null,null,null,null,null,null,null,null,null,null,null,null,null,null,null,null,null,null,null,null,null,null,null,null,null,null,null,null,null,null,null,null,null,null,null,null,null,null,null,null,null,null,null,null,null,null,null,null,null,null,null,null,null,null,null,null,null,null,null,null,null,null,null,null,null,null,null,null,null,null,null,null,null,null,null,null,null,null,null,null,null,null,null,null,null,null,null,null,null,null,null,null,null,null,null,null,null,null,null,null,null,null,null,null,null,null,null,null,null,null,null,null,null,null,null,null,null,null,null,null,null,null,null,null,null,null,null,null,null,null,null,null,null,null,null,null,null,null,null,null,null,null,null,null,null,null,null,null,null,null,null,null,null,null,null,null,null,null,null,null,null,null,null,null,null,null,null,null,null,null,null,null,null,null,null,null,null,null,null,null,null,null,null,null,null,null,null,null,null,null,null,null,null,null,null,null,null,null,null,null,null,null,null,null,null,null,null,null,null,null,null,null,null,null,null,null,null,null,null,null,null,null,null,null,null,null,null,null,null,null,null,null,null,null,null,null,null,null,null,"November"]
[null,null,null,null,null,null,null,null,null,null,null,null,null,null,null,null,null,null,null,null,null,null,null,null,null,null,null,null,null,null,null,null,null,null,null,null,null,null,null,null,null,null,null,null,null,null,null,null,null,null,null,null,null,null,null,null,null,null,null,null,null,null,null,null,null,null,null,null,null,null,null,null,null,null,null,null,null,null,null,null,null,null,null,null,null,null,null,null,null,null,null,null,null,null,null,null,null,null,null,null,null,null,null,null,null,null,null,null,null,null,null,null,null,null,null,null,null,null,null,null,null,null,null,null,null,null,null,null,null,null,null,null,null,null,null,null,null,null,null,null,null,null,null,null,null,null,null,null,null,null,null,null,null,null,null,null,null,null,null,null,null,null,null,null,null,null,null,null,null,null,null,null,null,null,null,null,null,null,null,null,null,null,null,null,null,null,null,null,null,null,null,null,null,null,null,null,null,null,null,null,null,null,null,null,null,null,null,null,null,null,null,null,null,null,null,null,null,null,null,null,null,null,null,null,null,null,null,null,null,null,null,null,null,null,null,null,null,null,null,null,null,null,null,null,null,null,null,null,null,null,null,null,null,null,null,null,null,null,null,null,null,null,null,null,null,null,null,null,null,null,null,null,null,null,null,null,null,null,null,null,null,null,null,null,null,null,null,null,null,null,null,null,null,null,null,null,null,null,null,null,null,null,null,null,null,null,null,null,null,null,null,null,null,null,null,null,null,null,null,null,null,null,null,null,null,null,null,null,null,null,null,null,null,null,null,null,null,null,null,null,null,null,null,null,null,null,null,null,null,null,null,null,null,null,null,null,null,null,null,null,null,null,null,null,null,null,null,null,null,null,null,null,null,null,null,null,null,null,null,null,null,null,null,null,null,null,null,null,null,null,null,null,null,null,null,null,null,null,null,null,null,null,null,null,null,null,null,null,null,null,null,null,null,null,null,null,null,null,null,null,null,null,null,null,null,null,null,null,null,null,null,null,null,null,null,null,null,null,null,null,null,null,null,null,null,null,null,null,null,null,null,null,null,"December"]
[null,null,null,null,null,null,null,null,null,null,null,null,null,null,null,null,null,null,null,null,null,null,null,null,null,null,null,null,null,null,null,null,null,null,null,null,null,null,null,null,null,null,null,null,null,null,null,null,null,null,null,null,null,null,null,null,null,null,null,null,null,null,null,null,null,null,null,null,null,null,null,null,null,null,null,null,null,null,null,null,null,null,null,null,null,null,null,null,null,null,null,null,null,null,null,null,null,null,null,null,null,null,null,null,null,null,null,null,null,null,null,null,null,null,null,null,null,null,null,null,null,null,null,null,null,null,null,null,null,null,null,null,null,null,null,null,null,null,null,null,null,null,null,null,null,null,null,null,null,null,null,null,null,null,null,null,null,null,null,null,null,null,null,null,null,null,null,null,null,null,null,null,null,null,null,null,null,null,null,null,null,null,null,null,null,null,null,null,null,null,null,null,null,null,null,null,null,null,null,null,null,null,null,null,null,null,null,null,null,null,null,null,null,null,null,null,null,null,null,null,null,null,null,null,null,null,null,null,null,null,null,null,null,null,null,null,null,null,null,null,null,null,null,null,null,null,null,null,null,null,null,null,null,null,null,null,null,null,null,null,null,null,null,null,null,null,null,null,null,null,null,null,null,null,null,null,null,null,null,null,null,null,null,null,null,null,null,null,null,null,null,null,null,null,null,null,null,null,null,null,null,null,null,null,null,null,null,null,null,null,null,null,null,null,null,null,null,null,null,null,null,null,null,null,null,null,null,null,null,null,null,null,null,null,null,null,null,null,null,null,null,null,null,null,null,null,null,null,null,null,null,null,null,null,null,null,null,null,null,null,null,null,null,null,null,null,null,null,null,null,null,null,null,null,null,null,null,null,null,null,null,null,null,null,null,null,null,null,null,null,null,null,null,null,null,null,null,null,null,null,null,null,null,null,null,null,null,null,null,null,null,null,null,null,null,null,null,null,null,null,null,null,null,null,null,null,null,null,null,null,null,null,null,null,null,null,null,null,null,null,null,null,null,null,null,null,null,null,null,null,null,null,null,"Report1"]
[null,null,null,null,null,null,null,null,null,null,null,null,null,null,null,null,null,null,null,null,null,null,null,null,null,null,null,null,null,null,null,null,null,null,null,null,null,null,null,null,null,null,null,null,null,null,null,null,null,null,null,null,null,null,null,null,null,null,null,null,null,null,null,null,null,null,null,null,null,null,null,null,null,null,null,null,null,null,null,null,null,null,null,null,null,null,null,null,null,null,null,null,null,null,null,null,null,null,null,null,null,null,null,null,null,null,null,null,null,null,null,null,null,null,null,null,null,null,null,null,null,null,null,null,null,null,null,null,null,null,null,null,null,null,null,null,null,null,null,null,null,null,null,null,null,null,null,null,null,null,null,null,null,null,null,null,null,null,null,null,null,null,null,null,null,null,null,null,null,null,null,null,null,null,null,null,null,null,null,null,null,null,null,null,null,null,null,null,null,null,null,null,null,null,null,null,null,null,null,null,null,null,null,null,null,null,null,null,null,null,null,null,null,null,null,null,null,null,null,null,null,null,null,null,null,null,null,null,null,null,null,null,null,null,null,null,null,null,null,null,null,null,null,null,null,null,null,null,null,null,null,null,null,null,null,null,null,null,null,null,null,null,null,null,null,null,null,null,null,null,null,null,null,null,null,null,null,null,null,null,null,null,null,null,null,null,null,null,null,null,null,null,null,null,null,null,null,null,null,null,null,null,null,null,null,null,null,null,null,null,null,null,null,null,null,null,null,null,null,null,null,null,null,null,null,null,null,null,null,null,null,null,null,null,null,null,null,null,null,null,null,null,null,null,null,null,null,null,null,null,null,null,null,null,null,null,null,null,null,null,null,null,null,null,null,null,null,null,null,null,null,null,null,null,null,null,null,null,null,null,null,null,null,null,null,null,null,null,null,null,null,null,null,null,null,null,null,null,null,null,null,null,null,null,null,null,null,null,null,null,null,null,null,null,null,null,null,null,null,null,null,null,null,null,null,null,null,null,null,null,null,null,null,null,null,null,null,null,null,null,null,null,null,null,null,null,null,null,null,null,null,null,null,"Report2"]
[null,null,null,null,null,null,null,null,null,null,null,null,null,null,null,null,null,null,null,null,null,null,null,null,null,null,null,null,null,null,null,null,null,null,null,null,null,null,null,null,null,null,null,null,null,null,null,null,null,null,null,null,null,null,null,null,null,null,null,null,null,null,null,null,null,null,null,null,null,null,null,null,null,null,null,null,null,null,null,null,null,null,null,null,null,null,null,null,null,null,null,null,null,null,null,null,null,null,null,null,null,null,null,null,null,null,null,null,null,null,null,null,null,null,null,null,null,null,null,null,null,null,null,null,null,null,null,null,null,null,null,null,null,null,null,null,null,null,null,null,null,null,null,null,null,null,null,null,null,null,null,null,null,null,null,null,null,null,null,null,null,null,null,null,null,null,null,null,null,null,null,null,null,null,null,null,null,null,null,null,null,null,null,null,null,null,null,null,null,null,null,null,null,null,null,null,null,null,null,null,null,null,null,null,null,null,null,null,null,null,null,null,null,null,null,null,null,null,null,null,null,null,null,null,null,null,null,null,null,null,null,null,null,null,null,null,null,null,null,null,null,null,null,null,null,null,null,null,null,null,null,null,null,null,null,null,null,null,null,null,null,null,null,null,null,null,null,null,null,null,null,null,null,null,null,null,null,null,null,null,null,null,null,null,null,null,null,null,null,null,null,null,null,null,null,null,null,null,null,null,null,null,null,null,null,null,null,null,null,null,null,null,null,null,null,null,null,null,null,null,null,null,null,null,null,null,null,null,null,null,null,null,null,null,null,null,null,null,null,null,null,null,null,null,null,null,null,null,null,null,null,null,null,null,null,null,null,null,null,null,null,null,null,null,null,null,null,null,null,null,null,null,null,null,null,null,null,null,null,null,null,null,null,null,null,null,null,null,null,null,null,null,null,null,null,null,null,null,null,null,null,null,null,null,null,null,null,null,null,null,null,null,null,null,null,null,null,null,null,null,null,null,null,null,null,null,null,null,null,null,null,null,null,null,null,null,null,null,null,null,null,null,null,null,null,null,null,null,null,null,null,null,null,"Report3"]
[null,null,null,null,null,null,null,null,null,null,null,null,null,null,null,null,null,null,null,null,null,null,null,null,null,null,null,null,null,null,null,null,null,null,null,null,null,null,null,null,null,null,null,null,null,null,null,null,null,null,null,null,null,null,null,null,null,null,null,null,null,null,null,null,null,null,null,null,null,null,null,null,null,null,null,null,null,null,null,null,null,null,null,null,null,null,null,null,null,null,null,null,null,null,null,null,null,null,null,null,null,null,null,null,null,null,null,null,null,null,null,null,null,null,null,null,null,null,null,null,null,null,null,null,null,null,null,null,null,null,null,null,null,null,null,null,null,null,null,null,null,null,null,null,null,null,null,null,null,null,null,null,null,null,null,null,null,null,null,null,null,null,null,null,null,null,null,null,null,null,null,null,null,null,null,null,null,null,null,null,null,null,null,null,null,null,null,null,null,null,null,null,null,null,null,null,null,null,null,null,null,null,null,null,null,null,null,null,null,null,null,null,null,null,null,null,null,null,null,null,null,null,null,null,null,null,null,null,null,null,null,null,null,null,null,null,null,null,null,null,null,null,null,null,null,null,null,null,null,null,null,null,null,null,null,null,null,null,null,null,null,null,null,null,null,null,null,null,null,null,null,null,null,null,null,null,null,null,null,null,null,null,null,null,null,null,null,null,null,null,null,null,null,null,null,null,null,null,null,null,null,null,null,null,null,null,null,null,null,null,null,null,null,null,null,null,null,null,null,null,null,null,null,null,null,null,null,null,null,null,null,null,null,null,null,null,null,null,null,null,null,null,null,null,null,null,null,null,null,null,null,null,null,null,null,null,null,null,null,null,null,null,null,null,null,null,null,null,null,null,null,null,null,null,null,null,null,null,null,null,null,null,null,null,null,null,null,null,null,null,null,null,null,null,null,null,null,null,null,null,null,null,null,null,null,null,null,null,null,null,null,null,null,null,null,null,null,null,null,null,null,null,null,null,null,null,null,null,null,null,null,null,null,null,null,null,null,null,null,null,null,null,null,null,null,null,null,null,null,null,null,null,null,"Login"]

{"sheet":"Login","index":2,"n_rows":23,"n_cols":20,"rows_kept":23,"cut":false,"hidden":false,"merged":[[4,1,4,2],[4,6,4,10],[4,18,4,19]]}
[]
[]
[]
[]
[null,"تسجيل كل دخول صحيح للمستخدمين مع تسجيل التاريخ و الوقت",null,null,null,null,"أسم المستخدم مع تحديد صلاحيات للدخول الى الأوراق التي يسمح للمستخدم بالتعامل معها",null,null,null,null,null,null,null,"المستخدم الحالي للنظام",null,"الأوراق التي يتم تحديثها عند فتح الملف",null,"مسؤول النظام"]
[]
[null,"Login Name","Time",null,null,null,"Username","Passcode","Allow Sheet","Allow Sheet","Allow Sheet",null,null,null,"Current User",null,"Sheet Names",null,"Username","Passcode"]
[null,"admin","2018-12-29T22:32:51",null,null,null,"شاجع مقلم",715533538,"يناير",null,null,null,null,null,"admin",null,"يناير",null,"admin",73075655]
[null,"محمد حنش","2018-12-29T22:33:39",null,null,null,"محمد حنش",715394274,"يناير",null,null,null,null,null,null,null,"غياب شهر يناير"]
[null,"شاجع مقلم","2018-12-29T22:34:46",null,null,null,null,null,null,null,null,null,null,null,null,null,"Interface"]
[null,"admin","2018-12-29T22:35:14",null,null,null,null,null,null,null,null,null,null,null,null,null,"Login"]
[null,"admin","2018-12-30T20:38:17"]
[null,"admin","2019-01-22T00:46:35"]
[null,"admin","2019-01-22T01:05:59"]
[null,"admin","2019-01-22T01:11:41"]
[null,"admin","2019-01-22T01:19:18"]
[null,"admin","2019-01-22T01:51:20"]
[null,"admin","2019-01-22T01:58:10"]
[null,"admin","2019-01-22T02:12:47"]
[null,"admin","2019-01-22T02:15:22"]
[null,"admin","2019-02-16T23:14:08"]
[null,"admin","2019-02-16T23:21:30"]
[null,"admin","2019-02-16T23:22:15"]